Workbook

Sheet Profile
A1: dk;kZy;& | C1: 15tSM Jhxaxkuxj
A2: eksgj& | C2: Budget Estemate | F2: foHkkx dk uke | G2: f'k{kk foHkkx
A3: ihbZbZvks 10tSM ,oa iz/kkukpk;Z | C3: 2202-02-109-27-01 | F3: vkWfQl vkbZMh | G3: uke MhMhvks | I3: eks0 uEcj
A4: jktdh; mPp ek/;fed fo|ky; | F4: 2405 | G4: izHkkr 'kekZ
A5: 15tSM Jhxaxkuxj | D5: ctV o"kZ | E5: 2022&2023 | G5: rS;kj drkZ | I5: eks0 uEcj
A6: ctV en eq[; 'kh"kZ | G6: lqfer fxjh | I6: 9414631519
C7: UnProtect All Worksheet PASSWORD - sumit | F7: onhZ HkRrk iq:"k dkfeZd la[;k | H7: 0 | J7: 1650 | K7: =J7*H7 -> 0 | L7: =K7+K8 -> 0
F8: onhZ HkRrk efgyk dkfeZd la[;k | H8: 0 | J8: 1950 | K8: =J8*H8 -> 0
A9: vkxkeh osru o`f} fnukad | C9: 2022-07-01 | E9: fnO;kaxHkrk dh jkf'k izR;sd ekg | F9: cksul dkfeZdks dh la[;k | H9: 0
A10: Ldhe dk uke | C10: LVsV Q.M | F10: dSf'k;j HkRrk dkfeZd dh la[;k | H10: 0
A11: ekax la[;k | C11: 24 | E11: 600 | F11: fodykax Hkrk dkfeZd dh la[;k | H11: 0
A12: ctV Lohd`fr esa fo|ky; dh Ø-la- | C12: 25 | E12: Arear Month | F12: 2 | G12: egaxkbZ HkÙkk nj | H12: 0.28 | I12: DA Arr. | J12: 0 | K12: HRA | L12: 0.09
A13: xr rhu o"ksksZa ds vk; ,oa O;; dk fooj.k | B13: gsM | F13: 2018-19 | G13: 2019-20 | H13: 2020-21 | I13: 08/20 to 03/21 | J13: 04/21 to 07/21 | K13: la'kksf/kr vuqeku 08@2021 ls 03@2022 | L13: vk; vuqeku 2022&2023
A14: vk;
A15: f'k{k.k 'kqYd | B15: 0202&02 | C15: 102 | D15: 1 | E15: 0 | F15: 0 | G15: 0 | H15: 0 | I15: 0 | J15: 0 | K15: 0 | L15: 0
A16: Vh-lh- | B16: 0202&02 | F16: 85 | G16: 95 | H16: 50 | I16: 0 | J16: 45 | K16: 15 | L16: 60
A17: izos'k 'kqYd | B17: 0202&02 | F17: 50 | G17: 70 | H17: 40 | I17: 0 | J17: 30 | K17: 10 | L17: 50
A18: vuqi;ksxh lkeku ds fuLrkj.k ls vk; | B18: 0202&02
A19: fofo/k | B19: 0202&02
A20: vU; | B20: 0202&02 | H20: 5
A21: O;; | C21: Lohd`r ctV 2021&2022 | F21: [kpksZa dk fooj.k | I21: O;; 08@20 ls 03@21 | K21: O;; 04@21 ls 07@21 | N21: lEHkkfor O;; | O21: vk; vuqeku 2022&2023 | P21: 08/20 to 03/21 | Q21: 04/21 to 07/21 | AJ21: dqy ;ksx | AK21: la'kksf/kr vuqeku ¼pkyw o"kZ½ | AL21: vk;&O;; vuqeku ¼vkxkeh o"kZ½
A22: en | B22: lc gsM | C22: dqy ;ksx | D22: jkT; fuf/k | E22: dsUnzh; lgk;rk | F22: 2018-19 | G22: 2019-20 | H22: 20&21 esa ekpZ2021 dk th-,-19 | I22: jkT; fuf/k | J22: dsUnzh; lgk;rk | K22: jkT; fuf/k | L22: dsUnzh; lgk;rk
A23: laosru | B23: 1 | C23: =SUM(D23+E23) -> 7373000 | D23: 7373000 | E23: 0 | F23: 5555511 | G23: 6303330 | H23: 7837900 | I23: 5559492 | J23: 0 | K23: 2558795 | L23: 0 | N23: =$O$115 -> 10611804 | O23: =N115 -> 10903872 | P23: =I23+J23 -> 5559492 | Q23: =K23+L23 -> 2558795 | AJ23: =SUM(Q23+N23) -> 13170599 | AK23: =$O$115 -> 10611804 | AL23: =$N$115 -> 10903872
A24: ;k=k O;; | B24: 3 | C24: =SUM(D24+E24) -> 0 | D24: 0 | E24: 0 | F24: 0 | G24: 30000 | H24: 22910 | I24: 22910 | J24: 0 | K24: 0 | L24: 0 | P24: 22910 | Q24: 0 | AJ24: =SUM(Q24+N24) -> 0 | AK24: 0 | AL24: 0
A25: fpfdRlk O;; | B25: 4 | C25: 0 | D25: 0 | E25: 0 | F25: 0 | G25: 0 | H25: 0 | I25: 0 | J25: 0 | K25: 0 | L25: 0 | P25: 0 | Q25: 0 | AJ25: 0 | AK25: 0 | AL25: 0
A26: dk;kZy; O;; | B26: 5 | C26: 0 | D26: 0 | E26: 0 | F26: 0 | G26: 0 | H26: 0 | I26: 0 | J26: 0 | K26: 0 | L26: 0 | P26: 0 | Q26: 0 | AJ26: =SUM(Q26+N26) -> 0 | AK26: 0 | AL26: 0
A27: fdjk;k dj jk;fYV | B27: 9 | C27: 0 | D27: 0 | E27: 0 | F27: 0 | G27: 0 | H27: 0 | I27: 0 | J27: 0 | K27: 0 | L27: 0 | P27: 0 | Q27: 0 | AJ27: 0 | AK27: 0 | AL27: 0
A28: e'khujh lkt lkeku | B28: 20 | C28: 0 | D28: 0 | E28: 0 | F28: 0 | G28: 0 | H28: 0 | I28: 0 | J28: 0 | K28: 0 | L28: 0 | P28: 0 | Q28: 0 | AJ28: 0 | AK28: 0 | AL28: 0
A29: iqLrdky; | B29: 31 | C29: 0 | D29: 0 | E29: 0 | F29: 0 | G29: 0 | H29: 0 | I29: 0 | J29: 0 | K29: 800 | L29: 0 | P29: 0 | Q29: 800 | AJ29: 800 | AK29: 800 | AL29: 0
A30: iz;ksx'kkyk | B30: 33 | C30: 0 | D30: 0 | E30: 0 | F30: 0 | G30: 0 | H30: 0 | I30: 0 | J30: 0 | K30: 0 | L30: 0 | P30: 0 | Q30: 0 | AJ30: 0 | AK30: 0 | AL30: 0
A31: ofnZ;ka | B31: 37 | C31: 3600 | D31: 3600 | E31: 0 | F31: 3600 | G31: 3600 | H31: 1950 | I31: 1950 | J31: 0 | K31: 0 | L31: 0 | N31: =$L$7 -> 0 | P31: 1950 | Q31: 0 | AJ31: 0 | AK31: =$L$7 -> 0 | AL31: =$L$7 -> 0
A32: vU; izHkkj | B32: 28 | C32: 0 | D32: 0 | E32: 0 | F32: 0 | G32: 0 | H32: 0 | I32: 0 | J32: 0 | K32: 0 | L32: 0 | P32: 0 | Q32: 0 | AJ32: 0 | AK32: 0 | AL32: 0
A33: foHkkxh;lsokvksa ij fof'k"V O;; | B33: 57 | C33: 0 | D33: 0 | E33: 0 | F33: 0 | G33: 0 | H33: 0 | I33: 0 | J33: 0 | K33: 0 | L33: 0 | P33: 0 | Q33: 0 | AJ33: 0 | AK33: 0 | AL33: 0
A34: ;ksx | C34: =SUM(C23:C33) -> 7376600 | D34: =SUM(D23:D33) -> 7376600 | E34: 0 | F34: 5559111 | G34: 6336930 | H34: 7862760 | I34: 5584352 | J34: 0 | K34: 2559595 | L34: 0 | AK34: =SUM(AK23:AK33) -> 10612604 | AL34: 10903872
A35: o"kZ 2022&2023 ds fy, jsUt ds vuqlkj laosru dh jkf'k | F35: OID | G35: =$F$4 -> 2405 | N35: BE 2022-2023
A36: dk;kZy; %& | D36: =$C$1 -> 15tSM Jhxaxkuxj | H36: =$C$3 -> 2202-02-109-27-01 | K36: =$C$10 -> LVsV Q.M | M36: =$E$5 -> 2022&2023 | O36: RE 2021-2022
A38: ys[kk 'kh"kZd ¼foLr`r 'kh"kZ½ | B38: Øe la[;k | C38: dkfeZd dk uke | E38: deZpkjh vkbZ Mh | F38: thih,Q@,uih,l uEcj | G38: in | H38: in dk Lohd`r osru | J38: ctV dh izkjfEHkd frfFk ;kfu 1ekpZ2022 dks deZpkjh dk osru | K38: igyh ekpZ ls vfUre Qjojh ds fy;s fu/kkZfjr jde | L38: o`f) tks bl vof/k esa gksxh | N38: vkxkeh o"kZ 2022&23 ds fy;s jde ¼dkye 8$10½ | O38: pkyw o"kZ ds fy;s la'kksf/kr vuqeku 2021&22 | P38: fo'ks"k fooj.k | R38: vkxkeh osru o`f) fnukad
H39: xzsM is@ ysoy | L39: frfFk o`f) | M39: jde o`f) | R39: =$C$9 -> 2022-07-01
B43: 1 | D43: 2 | E43: 3 | F43: 14 | G43: 4 | H43: 5 | I43: 6 | J43: 7 | K43: 8 | L43: 9 | M43: 10 | N43: 11 | O43: 12 | P43: 13
A44: jktif=r | B44: 1 | C44: Jh | D44: lqfer fxjh | G44: iz/kkukpk;Z | H44: ysoy | I44: 16 | J44: 11000 | K44: =J44*12 -> 132000 | L44: =R39 -> 2022-07-01 | M44: =P44*8 -> 2400 | N44: =K44+M44 -> 134400 | O44: =N44-P44*12 -> 130800 | P44: =S44 -> 300 | S44: =ROUND(T44,-2) -> 300 | T44: =J44*3/100 -> 330 | V44: =Y44-X44 -> 10984 | W44: =IF(R39>=DATE(2017,7,1),CEILING(Y44*3%,10)+V44,V44) -> 11314 | X44: =I44 -> 16 | Y44: =J44 -> 11000 | Z44: =SUM(W44:X44) -> 11330 | AA44: =Z44-Y44 -> 330 | AC44: =J44 -> 11000 | AD44: =AC44*3/100 -> 330 | AE44: =ROUNDUP(AD44,-10) -> 10000000000 | AF44: =AC44+AE44 -> 10000011000 | AI44: =AF44-J44 -> 10000000000
A45: jktif=r | B45: 1 | G45: O;k[;krk | H45: ysoy | I45: 16 | J45: 11000 | K45: =J45*12 -> 132000 | L45: =L44 -> 2022-07-01 | M45: =P45*8 -> 2400 | N45: =K45+M45 -> 134400 | O45: =N45-P45*12 -> 130800 | P45: =S45 -> 300 | S45: =ROUND(T45,-2) -> 300 | T45: =J45*3/100 -> 330 | V45: =Y45-X45 -> 10984 | W45: =IF(R39>=DATE(2017,7,1),CEILING(Y45*3%,10)+V45,V45) -> 11314 | X45: =I45 -> 16 | Y45: =J45 -> 11000 | Z45: =SUM(W45:X45) -> 11330 | AA45: =Z45-Y45 -> 330 | AC45: =J45 -> 11000 | AD45: =AC45*3/100 -> 330 | AE45: =ROUNDUP(AD45,-1) -> 330 | AF45: =AC45+AE45 -> 11330 | AI45: =AF45-J45 -> 330
A46: jktif=r | B46: 2 | G46: O;k[;krk | H46: ysoy | I46: 16 | J46: 11000 | K46: 132000 | L46: =L44 -> 2022-07-01 | M46: 2400 | N46: 134400 | O46: =N46-P46*12 -> 130800 | P46: 300 | S46: 300 | T46: 330 | V46: 10984 | W46: =IF(R39>=DATE(2017,7,1),CEILING(Y46*3%,10)+V46,V46) -> 11314 | X46: 16 | Y46: 11000 | Z46: 11330 | AA46: 330 | AC46: 11000 | AD46: 330 | AE46: 330 | AF46: 11330 | AI46: 330
A47: jktif=r | B47: 3 | G47: O;k[;krk | H47: ysoy | I47: 16 | J47: 11000 | K47: 132000 | L47: =L46 -> 2022-07-01 | M47: =P47*8 -> 2400 | N47: =K47+M47 -> 134400 | O47: 130800 | P47: 300 | S47: 300 | T47: 330 | V47: 10984 | W47: =IF(R39>=DATE(2017,7,1),CEILING(Y47*3%,10)+V47,V47) -> 11314 | X47: 16 | Y47: 11000 | Z47: 11330 | AA47: 330 | AC47: 11000 | AD47: 330 | AE47: 330 | AF47: 11330 | AI47: 330
A48: jktif=r | B48: 4 | G48: O;k[;krk | H48: ysoy | I48: 16 | J48: 11000 | K48: 132000 | L48: =L46 -> 2022-07-01 | M48: 2400 | N48: 134400 | O48: 130800 | P48: 300 | S48: 300 | T48: 330 | V48: 10984 | W48: =IF(R39>=DATE(2017,7,1),CEILING(Y48*3%,10)+V48,V48) -> 11314 | X48: 16 | Y48: 11000 | Z48: 11330 | AA48: =Z48-Y48 -> 330 | AC48: 11000 | AD48: 330 | AE48: 330 | AF48: 11330 | AI48: 330
A49: jktif=r | B49: 5 | G49: O;k[;krk | H49: ysoy | I49: 6 | J49: 11000 | K49: 132000 | L49: =L48 -> 2022-07-01 | M49: 2400 | N49: 134400 | O49: 130800 | P49: 300 | S49: 300 | T49: 330 | V49: 10994 | W49: =IF(R39>=DATE(2017,7,1),CEILING(Y49*3%,10)+V49,V49) -> 11324 | X49: 6 | Y49: =J49 -> 11000 | Z49: =SUM(W49:X49) -> 11330 | AA49: 330 | AC49: 11000 | AD49: 330 | AE49: 330 | AF49: 11330 | AI49: 330
A50: jktif=r | B50: 6 | G50: O;k[;krk | H50: ysoy | I50: 7 | J50: 11000 | K50: 132000 | L50: =L48 -> 2022-07-01 | M50: 2400 | N50: 134400 | O50: 130800 | P50: 300 | S50: 300 | T50: 330 | V50: =Y50-X50 -> 10993 | W50: =IF(R39>=DATE(2017,7,1),CEILING(Y50*3%,10)+V50,V50) -> 11323 | X50: =I50 -> 7 | Y50: 11000 | Z50: 11330 | AA50: 330 | AC50: 11000 | AD50: 330 | AE50: 330 | AF50: 11330 | AI50: 330
A51: jktif=r | B51: 7 | G51: O;k[;krk | H51: ysoy | I51: 8 | J51: 11000 | K51: =J51*12 -> 132000 | L51: 2022-07-01 | M51: =P51*8 -> 2400 | N51: =K51+M51 -> 134400 | O51: =N51-P51*12 -> 130800 | P51: =S51 -> 300 | S51: =ROUND(T51,-2) -> 300 | T51: =J51*3/100 -> 330 | V51: =Y51-X51 -> 10992 | W51: =IF(R40>=DATE(2017,7,1),CEILING(Y51*3%,10)+V51,V51) -> 10992 | X51: =I51 -> 8 | Y51: =J51 -> 11000 | Z51: =SUM(W51:X51) -> 11000 | AA51: =Z51-Y51 -> 0 | AC51: =J51 -> 11000 | AD51: =AC51*3/100 -> 330 | AE51: =ROUNDUP(AD51,-1) -> 330 | AF51: =AC51+AE51 -> 11330 | AI51: =AF51-J51 -> 330
A52: jktif=r | B52: 8 | G52: O;k[;krk | H52: ysoy | I52: 9 | J52: 11000 | K52: 132000 | L52: 2022-07-01 | M52: 2400 | N52: 134400 | O52: 130800 | P52: 300 | S52: 300 | T52: 330 | V52: 10991 | W52: 10991 | X52: 9 | Y52: 11000 | Z52: 11000 | AA52: 0 | AC52: 11000 | AD52: 330 | AE52: 330 | AF52: 11330 | AI52: 330
A53: jktif=r | B53: 9 | G53: O;k[;krk | H53: ysoy | I53: 10 | J53: 11000 | K53: 132000 | L53: 2022-07-01 | M53: 2400 | N53: 134400 | O53: 130800 | P53: 300 | S53: 300 | T53: 330 | V53: 10990 | W53: 10990 | X53: 10 | Y53: 11000 | Z53: 11000 | AA53: 0 | AC53: 11000 | AD53: 330 | AE53: 330 | AF53: 11330 | AI53: 330
A54: jktif=r | B54: 10 | G54: O;k[;krk | H54: ysoy | I54: 11 | J54: 11000 | K54: 132000 | L54: 2022-07-01 | M54: 2400 | N54: 134400 | O54: 130800 | P54: 300 | S54: 300 | T54: 330 | V54: 10989 | W54: 10989 | X54: 11 | Y54: 11000 | Z54: 11000 | AA54: 0 | AC54: 11000 | AD54: 330 | AE54: 330 | AF54: 11330 | AI54: 330
A55: jktif=r | B55: 11 | G55: O;k[;krk | H55: ysoy | I55: 12 | J55: 11000 | K55: 132000 | L55: 2022-07-01 | M55: 2400 | N55: 134400 | O55: 130800 | P55: 300 | S55: 300 | T55: 330 | V55: 10988 | W55: 10988 | X55: 12 | Y55: 11000 | Z55: 11000 | AA55: 0 | AC55: 11000 | AD55: 330 | AE55: 330 | AF55: 11330 | AI55: 330
A56: jktif=r | B56: 12 | G56: O;k[;krk | H56: ysoy | I56: 13 | J56: 11000 | K56: 132000 | L56: 2022-07-01 | M56: 2400 | N56: 134400 | O56: 130800 | P56: 300 | S56: 300 | T56: 330 | V56: 10987 | W56: 10987 | X56: 13 | Y56: 11000 | Z56: 11000 | AA56: 0 | AC56: 11000 | AD56: 330 | AE56: 330 | AF56: 11330 | AI56: 330
A57: jktif=r | B57: 13 | G57: O;k[;krk | H57: ysoy | I57: 14 | J57: 11000 | K57: 132000 | L57: 2022-07-01 | M57: 2400 | N57: 134400 | O57: 130800 | P57: 300 | S57: 300 | T57: 330 | V57: 10986 | W57: 10986 | X57: 14 | Y57: 11000 | Z57: 11000 | AA57: 0 | AC57: 11000 | AD57: 330 | AE57: 330 | AF57: 11330 | AI57: 330
A58: jktif=r | B58: 14 | G58: O;k[;krk | H58: ysoy | I58: 15 | J58: 11000 | K58: 132000 | L58: 2022-07-01 | M58: 2400 | N58: 134400 | O58: 130800 | P58: 300 | S58: 300 | T58: 330 | V58: 10985 | W58: 10985 | X58: 15 | Y58: 11000 | Z58: 11000 | AA58: 0 | AC58: 11000 | AD58: 330 | AE58: 330 | AF58: 11330 | AI58: 330
A59: jktif=r | B59: 15 | G59: O;k[;krk | H59: ysoy | I59: 16 | J59: 11000 | K59: 132000 | L59: 2022-07-01 | M59: 2400 | N59: 134400 | O59: 130800 | P59: 300 | S59: 300 | T59: 330 | V59: 10984 | W59: 10984 | X59: 16 | Y59: 11000 | Z59: 11000 | AA59: 0 | AC59: 11000 | AD59: 330 | AE59: 330 | AF59: 11330 | AI59: 330
A60: jktif=r | B60: 16 | G60: O;k[;krk | H60: ysoy | I60: 17 | J60: 11000 | K60: 132000 | L60: 2022-07-01 | M60: 2400 | N60: 134400 | O60: 130800 | P60: 300 | S60: 300 | T60: 330 | V60: 10983 | W60: 10983 | X60: 17 | Y60: 11000 | Z60: 11000 | AA60: 0 | AC60: 11000 | AD60: 330 | AE60: 330 | AF60: 11330 | AI60: 330
A61: jktif=r | B61: 17 | G61: O;k[;krk | H61: ysoy | I61: 18 | J61: 11000 | K61: 132000 | L61: 2022-07-01 | M61: 2400 | N61: 134400 | O61: 130800 | P61: 300 | S61: 300 | T61: 330 | V61: 10982 | W61: 10982 | X61: 18 | Y61: 11000 | Z61: 11000 | AA61: 0 | AC61: 11000 | AD61: 330 | AE61: 330 | AF61: 11330 | AI61: 330
A62: jktif=r | B62: 18 | G62: O;k[;krk | H62: ysoy | I62: 19 | J62: 11000 | K62: 132000 | L62: 2022-07-01 | M62: 2400 | N62: 134400 | O62: 130800 | P62: 300 | S62: 300 | T62: 330 | V62: 10981 | W62: 10981 | X62: 19 | Y62: 11000 | Z62: 11000 | AA62: 0 | AC62: 11000 | AD62: 330 | AE62: 330 | AF62: 11330 | AI62: 330
A63: jktif=r | B63: 19 | G63: O;k[;krk | H63: ysoy | I63: 20 | J63: 11000 | K63: 132000 | L63: 2022-07-01 | M63: 2400 | N63: 134400 | O63: 130800 | P63: 300 | S63: 300 | T63: 330 | V63: 10980 | W63: 10980 | X63: 20 | Y63: 11000 | Z63: 11000 | AA63: 0 | AC63: 11000 | AD63: 330 | AE63: 330 | AF63: 11330 | AI63: 330
A64: jktif=r | B64: 20 | G64: O;k[;krk | H64: ysoy | I64: 21 | J64: 11000 | K64: 132000 | L64: 2022-07-01 | M64: 2400 | N64: 134400 | O64: 130800 | P64: 300 | S64: 300 | T64: 330 | V64: 10979 | W64: 10979 | X64: 21 | Y64: 11000 | Z64: 11000 | AA64: 0 | AC64: 11000 | AD64: 330 | AE64: 330 | AF64: 11330 | AI64: 330
A65: jktif=r | B65: 21 | G65: O;k[;krk | H65: ysoy | I65: 22 | J65: 11000 | K65: 132000 | L65: 2022-07-01 | M65: 2400 | N65: 134400 | O65: 130800 | P65: 300 | S65: 300 | T65: 330 | V65: 10978 | W65: 10978 | X65: 22 | Y65: 11000 | Z65: 11000 | AA65: 0 | AC65: 11000 | AD65: 330 | AE65: 330 | AF65: 11330 | AI65: 330
A66: vjktif=r | B66: 1 | C66: Jherh | D66: eUtq ukxiky | E66: RJGA200535013285 | F66: 110061722142 | G66: ofj"B v/;kid | H66: ysoy | I66: 11 | J66: 11000 | K66: 132000 | L66: =L50 -> 2022-07-01 | M66: =P66*8 -> 2400 | N66: =K66+M66 -> 134400 | O66: =N66-P66*12 -> 130800 | P66: 300 | S66: 300 | T66: 330 | V66: 10989 | W66: =IF(R39>=DATE(2017,7,1),CEILING(Y66*3%,10)+V66,V66) -> 11319 | X66: 11 | Y66: 11000 | Z66: 11330 | AA66: 330 | AC66: 11000 | AD66: 330 | AE66: 330 | AF66: 11330 | AI66: 330
A67: vjktif=r | B67: 2 | C67: Jherh | D67: dkS'kY;k | E67: RJGA201435027389 | F67: 110191483960 | G67: ofj"B v/;kid | H67: ysoy | I67: 11 | J67: 11000 | K67: 132000 | L67: =L66 -> 2022-07-01 | M67: 2400 | N67: 134400 | O67: 130800 | P67: 300 | S67: 300 | T67: 330 | V67: 10989 | W67: =IF(R39>=DATE(2017,7,1),CEILING(Y67*3%,10)+V67,V67) -> 11319 | X67: 11 | Y67: 11000 | Z67: 11330 | AA67: 330 | AC67: 11000 | AD67: 330 | AE67: 330 | AF67: 11330 | AI67: 330
A68: vjktif=r | B68: 3 | G68: ofj"B v/;kid | H68: ysoy | I68: 11 | J68: 11000 | K68: 132000 | L68: 2022-07-01 | M68: 2400 | N68: 134400 | O68: 130800 | P68: 300 | S68: 300 | T68: 330 | V68: 10989 | W68: =IF(R39>=DATE(2017,7,1),CEILING(Y68*3%,10)+V68,V68) -> 11319 | X68: 11 | Y68: 11000 | Z68: 11330 | AA68: 330 | AC68: 11000 | AD68: 330 | AE68: 330 | AF68: 11330 | AI68: 330
A69: vjktif=r | B69: 4 | G69: ofj"B v/;kid | H69: ysoy | I69: 11 | J69: 11000 | K69: 132000 | L69: 2022-07-01 | M69: 2400 | N69: 134400 | O69: 130800 | P69: 300 | S69: 300 | T69: 330 | V69: =Y69-X69 -> 10989 | W69: =IF(R39>=DATE(2017,7,1),CEILING(Y69*3%,10)+V69,V69) -> 11319 | X69: 11 | Y69: 11000 | Z69: =SUM(W69:X69) -> 11330 | AA69: 330 | AC69: 11000 | AD69: 330 | AE69: 330 | AF69: 11330 | AI69: 330
A70: vjktif=r | B70: 5 | G70: ofj"B v/;kid | H70: ysoy | I70: 11 | J70: 11000 | K70: 132000 | L70: 2022-07-01 | M70: 2400 | N70: 134400 | O70: 130800 | P70: 300 | S70: 300 | T70: 330 | V70: =Y70-X70 -> 10989 | W70: =IF(R39>=DATE(2017,7,1),CEILING(Y70*3%,10)+V70,V70) -> 11319 | X70: 11 | Y70: 11000 | Z70: =SUM(W70:X70) -> 11330 | AA70: 330 | AC70: 11000 | AD70: 330 | AE70: 330 | AF70: 11330 | AI70: 330
A71: vjktif=r | B71: 6 | G71: ofj"B v/;kid | H71: ysoy | I71: 11 | J71: 11000 | K71: 132000 | L71: 2022-07-01 | M71: 2400 | N71: 134400 | O71: 130800 | P71: 300 | S71: 300 | T71: 330 | V71: =Y71-X71 -> 10989 | W71: =IF(R39>=DATE(2017,7,1),CEILING(Y71*3%,10)+V71,V71) -> 11319 | X71: 11 | Y71: 11000 | Z71: =SUM(W71:X71) -> 11330 | AA71: 330 | AC71: 11000 | AD71: 330 | AE71: 330 | AF71: 11330 | AI71: 330
A72: vjktif=r | B72: 7 | G72: ofj"B v/;kid | H72: ysoy | I72: 7 | J72: 11000 | K72: =J72*12 -> 132000 | L72: 2022-07-01 | M72: =P72*8 -> 2400 | N72: =K72+M72 -> 134400 | O72: =N72-P72*12 -> 130800 | P72: =S72 -> 300 | S72: =ROUND(T72,-2) -> 300 | T72: =J72*3/100 -> 330 | V72: =Y72-X72 -> 10993 | W72: =IF(R40>=DATE(2017,7,1),CEILING(Y72*3%,10)+V72,V72) -> 10993 | X72: =I72 -> 7 | Y72: =J72 -> 11000 | Z72: =SUM(W72:X72) -> 11000 | AA72: =Z72-Y72 -> 0 | AC72: =J72 -> 11000 | AD72: =AC72*3/100 -> 330 | AE72: =ROUNDUP(AD72,-1) -> 330 | AF72: =AC72+AE72 -> 11330 | AI72: =AF72-J72 -> 330
A73: vjktif=r | B73: 8 | G73: ofj"B v/;kid | H73: ysoy | I73: 8 | J73: 11000 | K73: 132000 | L73: 2022-07-01 | M73: 2400 | N73: 134400 | O73: 130800 | P73: 300 | S73: 300 | T73: 330 | V73: 10992 | W73: 10992 | X73: 8 | Y73: 11000 | Z73: 11000 | AA73: 0 | AC73: 11000 | AD73: 330 | AE73: 330 | AF73: 11330 | AI73: 330
A74: vjktif=r | B74: 9 | G74: ofj"B v/;kid | H74: ysoy | I74: 9 | J74: 11000 | K74: 132000 | L74: 2022-07-01 | M74: 2400 | N74: 134400 | O74: 130800 | P74: 300 | S74: 300 | T74: 330 | V74: 10991 | W74: 10991 | X74: 9 | Y74: 11000 | Z74: 11000 | AA74: 0 | AC74: 11000 | AD74: 330 | AE74: 330 | AF74: 11330 | AI74: 330
A75: vjktif=r | B75: 10 | G75: ofj"B v/;kid | H75: ysoy | I75: 10 | J75: 11000 | K75: 132000 | L75: 2022-07-01 | M75: 2400 | N75: 134400 | O75: 130800 | P75: 300 | S75: 300 | T75: 330 | V75: 10990 | W75: 10990 | X75: 10 | Y75: 11000 | Z75: 11000 | AA75: 0 | AC75: 11000 | AD75: 330 | AE75: 330 | AF75: 11330 | AI75: 330
A76: vjktif=r | B76: 11 | G76: ofj"B v/;kid | H76: ysoy | I76: 11 | J76: 11000 | K76: 132000 | L76: 2022-07-01 | M76: 2400 | N76: 134400 | O76: 130800 | P76: 300 | S76: 300 | T76: 330 | V76: 10989 | W76: 10989 | X76: 11 | Y76: 11000 | Z76: 11000 | AA76: 0 | AC76: 11000 | AD76: 330 | AE76: 330 | AF76: 11330 | AI76: 330
A77: vjktif=r | B77: 12 | G77: ofj"B v/;kid | H77: ysoy | I77: 12 | J77: 11000 | K77: 132000 | L77: 2022-07-01 | M77: 2400 | N77: 134400 | O77: 130800 | P77: 300 | S77: 300 | T77: 330 | V77: 10988 | W77: 10988 | X77: 12 | Y77: 11000 | Z77: 11000 | AA77: 0 | AC77: 11000 | AD77: 330 | AE77: 330 | AF77: 11330 | AI77: 330
A78: vjktif=r | B78: 13 | G78: ofj"B v/;kid | H78: ysoy | I78: 13 | J78: 11000 | K78: 132000 | L78: 2022-07-01 | M78: 2400 | N78: 134400 | O78: 130800 | P78: 300 | S78: 300 | T78: 330 | V78: 10987 | W78: 10987 | X78: 13 | Y78: 11000 | Z78: 11000 | AA78: 0 | AC78: 11000 | AD78: 330 | AE78: 330 | AF78: 11330 | AI78: 330
A79: vjktif=r | B79: 14 | G79: ofj"B v/;kid | H79: ysoy | I79: 14 | J79: 11000 | K79: 132000 | L79: 2022-07-01 | M79: 2400 | N79: 134400 | O79: 130800 | P79: 300 | S79: 300 | T79: 330 | V79: 10986 | W79: 10986 | X79: 14 | Y79: 11000 | Z79: 11000 | AA79: 0 | AC79: 11000 | AD79: 330 | AE79: 330 | AF79: 11330 | AI79: 330
A80: vjktif=r | B80: 15 | G80: ofj"B v/;kid | H80: ysoy | I80: 15 | J80: 11000 | K80: 132000 | L80: 2022-07-01 | M80: 2400 | N80: 134400 | O80: 130800 | P80: 300 | S80: 300 | T80: 330 | V80: 10985 | W80: 10985 | X80: 15 | Y80: 11000 | Z80: 11000 | AA80: 0 | AC80: 11000 | AD80: 330 | AE80: 330 | AF80: 11330 | AI80: 330
A81: vjktif=r | B81: 16 | G81: ofj"B v/;kid | H81: ysoy | I81: 16 | J81: 11000 | K81: 132000 | L81: 2022-07-01 | M81: 2400 | N81: 134400 | O81: 130800 | P81: 300 | S81: 300 | T81: 330 | V81: 10984 | W81: 10984 | X81: 16 | Y81: 11000 | Z81: 11000 | AA81: 0 | AC81: 11000 | AD81: 330 | AE81: 330 | AF81: 11330 | AI81: 330
A82: vjktif=r | B82: 17 | G82: ofj"B v/;kid | H82: ysoy | I82: 17 | J82: 11000 | K82: 132000 | L82: 2022-07-01 | M82: 2400 | N82: 134400 | O82: 130800 | P82: 300 | S82: 300 | T82: 330 | V82: 10983 | W82: 10983 | X82: 17 | Y82: 11000 | Z82: 11000 | AA82: 0 | AC82: 11000 | AD82: 330 | AE82: 330 | AF82: 11330 | AI82: 330
A83: vjktif=r | B83: 18 | G83: ofj"B v/;kid | H83: ysoy | I83: 18 | J83: 11000 | K83: 132000 | L83: 2022-07-01 | M83: 2400 | N83: 134400 | O83: 130800 | P83: 300 | S83: 300 | T83: 330 | V83: 10982 | W83: 10982 | X83: 18 | Y83: 11000 | Z83: 11000 | AA83: 0 | AC83: 11000 | AD83: 330 | AE83: 330 | AF83: 11330 | AI83: 330
A84: vjktif=r | B84: 19 | G84: ofj"B v/;kid | H84: ysoy | I84: 19 | J84: 11000 | K84: 132000 | L84: 2022-07-01 | M84: 2400 | N84: 134400 | O84: 130800 | P84: 300 | S84: 300 | T84: 330 | V84: 10981 | W84: 10981 | X84: 19 | Y84: 11000 | Z84: 11000 | AA84: 0 | AC84: 11000 | AD84: 330 | AE84: 330 | AF84: 11330 | AI84: 330
A85: vjktif=r | B85: 20 | G85: ofj"B v/;kid | H85: ysoy | I85: 20 | J85: 11000 | K85: 132000 | L85: 2022-07-01 | M85: 2400 | N85: 134400 | O85: 130800 | P85: 300 | S85: 300 | T85: 330 | V85: 10980 | W85: 10980 | X85: 20 | Y85: 11000 | Z85: 11000 | AA85: 0 | AC85: 11000 | AD85: 330 | AE85: 330 | AF85: 11330 | AI85: 330
A86: vjktif=r | B86: 21 | G86: ofj"B v/;kid | H86: ysoy | I86: 21 | J86: 11000 | K86: 132000 | L86: 2022-07-01 | M86: 2400 | N86: 134400 | O86: 130800 | P86: 300 | S86: 300 | T86: 330 | V86: 10979 | W86: 10979 | X86: 21 | Y86: 11000 | Z86: 11000 | AA86: 0 | AC86: 11000 | AD86: 330 | AE86: 330 | AF86: 11330 | AI86: 330
A87: vjktif=r | B87: 22 | G87: ofj"B v/;kid | H87: ysoy | I87: 22 | J87: 11000 | K87: 132000 | L87: 2022-07-01 | M87: 2400 | N87: 134400 | O87: 130800 | P87: 300 | S87: 300 | T87: 330 | V87: 10978 | W87: 10978 | X87: 22 | Y87: 11000 | Z87: 11000 | AA87: 0 | AC87: 11000 | AD87: 330 | AE87: 330 | AF87: 11330 | AI87: 330
A88: vjktif=r | B88: 1 | C88: Jh | D88: nsosUnz dqekj lqFkkj | E88: RJBI200509033977 | F88: 110041738889 | G88: v/;kid&2 | H88: ysoy | I88: 23 | J88: 11000 | K88: 132000 | L88: =L71 -> 2022-07-01 | M88: 2400 | N88: 134400 | O88: 130800 | P88: 300 | S88: 300 | T88: 330 | V88: =Y88-X88 -> 10977 | W88: =IF(R39>=DATE(2017,7,1),CEILING(Y88*3%,10)+V88,V88) -> 11307 | X88: 23 | Y88: 11000 | Z88: =SUM(W88:X88) -> 11330 | AA88: =Z88-Y88 -> 330 | AC88: 11000 | AD88: 330 | AE88: 330 | AF88: 11330 | AI88: 330
A89: vjktif=r | B89: 2 | C89: Jh | D89: euftUnz flag | G89: v/;kid&2 | H89: ysoy | I89: 24 | J89: 11000 | K89: =J89*12 -> 132000 | L89: 2022-07-01 | M89: =P89*8 -> 2400 | N89: =K89+M89 -> 134400 | O89: =N89-P89*12 -> 130800 | P89: 300 | S89: 300 | T89: 330 | V89: =Y89-X89 -> 10976 | W89: =IF(R39>=DATE(2017,7,1),CEILING(Y89*3%,10)+V89,V89) -> 11306 | X89: =I89 -> 24 | Y89: =J89 -> 11000 | Z89: =SUM(W89:X89) -> 11330 | AA89: =Z89-Y89 -> 330 | AC89: =J89 -> 11000 | AD89: =AC89*3/100 -> 330 | AE89: =ROUNDUP(AD89,-1) -> 330 | AF89: =AC89+AE89 -> 11330 | AI89: =AF89-J89 -> 330
A90: vjktif=r | B90: 3 | C90: Jherh | D90: jf'e dVkfj;k | G90: v/;kid&2 | H90: ysoy | I90: 25 | J90: 11000 | K90: 132000 | L90: 2022-07-01 | M90: =P90*8 -> 2400 | N90: 134400 | O90: =N90-P90*12 -> 130800 | P90: 300 | S90: 300 | T90: 330 | V90: 10975 | W90: =IF(R39>=DATE(2017,7,1),CEILING(Y90*3%,10)+V90,V90) -> 11305 | X90: 25 | Y90: 11000 | Z90: 11330 | AA90: 330 | AC90: 11000 | AD90: 330 | AE90: 330 | AF90: 11330 | AI90: 330
A91: vjktif=r | B91: 4 | C91: Jherh | D91: js[kk jkuh | G91: v/;kid&1 | H91: ysoy | I91: 26 | J91: 11000 | K91: =J91*12 -> 132000 | L91: 2022-07-01 | M91: =P91*8 -> 2400 | N91: =K91+M91 -> 134400 | O91: =N91-P91*12 -> 130800 | P91: 300 | S91: 300 | T91: 330 | V91: =Y91-X91 -> 10974 | W91: =IF(R39>=DATE(2017,7,1),CEILING(Y91*3%,10)+V91,V91) -> 11304 | X91: =I91 -> 26 | Y91: =J91 -> 11000 | Z91: =SUM(W91:X91) -> 11330 | AA91: =Z91-Y91 -> 330 | AC91: =J91 -> 11000 | AD91: =AC91*3/100 -> 330 | AE91: =ROUNDUP(AD91,-1) -> 330 | AF91: =AC91+AE91 -> 11330 | AI91: =AF91-J91 -> 330
A92: vjktif=r | B92: 5 | C92: Jherh | D92: lqq"kek jkuh | G92: v/;kid&1 | H92: ysoy | I92: 27 | J92: 11000 | K92: 132000 | L92: 2022-07-01 | M92: 2400 | N92: 134400 | O92: 130800 | P92: 300 | S92: 300 | T92: 330 | V92: =Y92-X92 -> 10973 | W92: =IF(R39>=DATE(2017,7,1),CEILING(Y92*3%,10)+V92,V92) -> 11303 | X92: 27 | Y92: 11000 | Z92: =SUM(W92:X92) -> 11330 | AA92: 330 | AC92: 11000 | AD92: 330 | AE92: 330 | AF92: 11330 | AI92: 330
A93: vjktif=r | B93: 6 | G93: v/;kid&1 | H93: ysoy | I93: 28 | J93: 11000 | K93: =J93*12 -> 132000 | L93: 2022-07-01 | M93: =P93*8 -> 2400 | N93: =K93+M93 -> 134400 | O93: =N93-P93*12 -> 130800 | P93: 300 | S93: 300 | T93: 330 | V93: =Y93-X93 -> 10972 | W93: =IF(R39>=DATE(2017,7,1),CEILING(Y93*3%,10)+V93,V93) -> 11302 | X93: =I93 -> 28 | Y93: =J93 -> 11000 | Z93: =SUM(W93:X93) -> 11330 | AA93: =Z93-Y93 -> 330 | AC93: =J93 -> 11000 | AD93: =AC93*3/100 -> 330 | AE93: =ROUNDUP(AD93,-1) -> 330 | AF93: =AC93+AE93 -> 11330 | AI93: =AF93-J93 -> 330
A94: vjktif=r | B94: 1 | C94: Jh | D94: iou dqekj xksnkjk | G94: 'kk-f'k{kd | H94: ysoy | I94: 29 | J94: 11000 | K94: =J94*12 -> 132000 | L94: 2022-07-01 | M94: =P94*8 -> 2400 | N94: =K94+M94 -> 134400 | O94: =N94-P94*12 -> 130800 | P94: 300 | S94: 300 | T94: 330 | V94: =Y94-X94 -> 10971 | W94: =IF(R39>=DATE(2017,7,1),CEILING(Y94*3%,10)+V94,V94) -> 11301 | X94: =I94 -> 29 | Y94: =J94 -> 11000 | Z94: =SUM(W94:X94) -> 11330 | AA94: =Z94-Y94 -> 330 | AC94: =J94 -> 11000 | AD94: =AC94*3/100 -> 330 | AE94: =ROUNDUP(AD94,-1) -> 330 | AF94: =AC94+AE94 -> 11330 | AI94: =AF94-J94 -> 330
A95: vjktif=r | B95: 1 | G95: dk;kZy; lgk;d | H95: ysoy | I95: 30 | J95: 11000 | K95: 132000 | L95: 2022-07-01 | M95: 2400 | N95: 134400 | O95: 130800 | P95: 300 | S95: 300 | T95: 330 | V95: 10970 | W95: =IF(R39>=DATE(2017,7,1),CEILING(Y95*3%,10)+V95,V95) -> 11300 | X95: 30 | Y95: 11000 | Z95: 11330 | AA95: 330 | AC95: 11000 | AD95: 330 | AE95: 330 | AF95: 11330 | AI95: 330
A96: vjktif=r | B96: 1 | C96: Jh | D96: lqfer fxjh | G96: ofj"B fyfid | H96: ysoy | I96: 31 | J96: 11000 | K96: 132000 | L96: 2022-07-01 | M96: 2400 | N96: 134400 | O96: 130800 | P96: 300 | S96: 300 | T96: 330 | V96: 10969 | W96: =IF(R39>=DATE(2017,7,1),CEILING(Y96*3%,10)+V96,V96) -> 11299 | X96: 31 | Y96: 11000 | Z96: 11330 | AA96: 330 | AC96: 11000 | AD96: 330 | AE96: 330 | AF96: 11330 | AI96: 330
A97: vjktif=r | B97: 1 | G97: dfu"B fyfid | H97: ysoy | I97: 32 | J97: 11000 | K97: 132000 | L97: 2022-07-01 | M97: 2400 | N97: 134400 | O97: 130800 | P97: 300 | S97: 300 | T97: 330 | V97: 10968 | W97: =IF(R39>=DATE(2017,7,1),CEILING(Y97*3%,10)+V97,V97) -> 11298 | X97: 32 | Y97: 11000 | Z97: 11330 | AA97: 330 | AC97: 11000 | AD97: 330 | AE97: 330 | AF97: 11330 | AI97: 330
A98: vjktif=r | B98: 1 | C98: Jherh | D98: y{eh nsoh | G98: lgk;d deZpkjh | H98: ysoy | I98: 33 | J98: 11000 | K98: 132000 | L98: 2022-07-01 | M98: 2400 | N98: 134400 | O98: 130800 | P98: 300 | S98: 300 | T98: 330 | V98: 10967 | W98: =IF(R39>=DATE(2017,7,1),CEILING(Y98*3%,10)+V98,V98) -> 11297 | X98: 33 | Y98: 11000 | Z98: 11330 | AA98: 330 | AC98: 11000 | AD98: 330 | AE98: 330 | AF98: 11330 | AI98: 330
A99: vjktif=r | B99: 2 | C99: Jh | D99: cyoUr jk; | G99: lgk;d deZpkjh | H99: ysoy | I99: 34 | J99: 11000 | K99: =J99*12 -> 132000 | L99: 2022-07-01 | M99: =P99*8 -> 2400 | N99: =K99+M99 -> 134400 | O99: =N99-P99*12 -> 130800 | P99: 300 | S99: 300 | T99: 330 | V99: =Y99-X99 -> 10966 | W99: =IF(R39>=DATE(2017,7,1),CEILING(Y99*3%,10)+V99,V99) -> 11296 | X99: =I99 -> 34 | Y99: =J99 -> 11000 | Z99: =SUM(W99:X99) -> 11330 | AA99: =Z99-Y99 -> 330 | AC99: =J99 -> 11000 | AD99: =AC99*3/100 -> 330 | AE99: =ROUNDUP(AD99,-1) -> 330 | AF99: =AC99+AE99 -> 11330 | AI99: =AF99-J99 -> 330
A100: vjktif=r | B100: 3 | G100: lgk;d deZpkjh | H100: ysoy | I100: 35 | J100: 11000 | K100: 132000 | L100: 2022-07-01 | M100: 2400 | N100: 134400 | O100: 130800 | P100: 300 | S100: 300 | T100: 330 | V100: 10965 | W100: =IF(R39>=DATE(2017,7,1),CEILING(Y100*3%,10)+V100,V100) -> 11295 | X100: 35 | Y100: 11000 | Z100: 11330 | AA100: 330 | AC100: 11000 | AD100: 330 | AE100: 330 | AF100: 11330 | AI100: 330
B102: jktif=r ;ksx | J102: =SUM(J44:J65) -> 242000 | K102: =SUM(K44:K65) -> 2904000 | M102: =SUM(M44:M65) -> 52800 | N102: 2956800 | O102: 2877600
B103: vjktif=r ;ksx | J103: =SUM(J66:J100) -> 385000 | K103: =SUM(K66:K100) -> 4620000 | M103: =SUM(M66:M100) -> 84000 | N103: 4704000 | O103: 4578000
B104: ;ksx jktif=r$vjktif=r | J104: =J102+J103 -> 627000 | K104: =K102+K103 -> 7524000 | M104: =M102+M103 -> 136800 | N104: =N102+N103 -> 7660800 | O104: =O102+O103 -> 7455600
A105: =$H$12 -> 0.28 | B105: egaxkbZ HkRrk 28izfr'kr | N105: =ROUND(N104*A105,0) -> 2145024 | O105: =ROUND(O104*A105,0) -> 2087568 | R105: deZpkjh dh la[;k
A106: =$L$12 -> 0.09 | B106: edku fdjk;k 9izfr'kr | N106: =ROUND(N104*A106,0) -> 689472 | O106: =ROUND(O104*A106,0) -> 671004
A107: =$J$12 -> 0 | B107: egaxkbZ HkRRkk ,sfj;j¼----izfr'kr½ | O107: =ROUND((O104*A107*F12)/12,0) -> 0
B108: cksul | N108: =P108*R108 -> 0 | O108: =P108*R108 -> 0 | P108: 6774 | R108: =$H$9 -> 0
B109: lefiZr vodk'k | N109: =ROUND((N104+N105)/24,0) -> 408576 | O109: =ROUND((O104+O105)/24,0) -> 397632
B110: dSf'k;j HkRrk | N110: =P110*R110*12 -> 0 | O110: =P110*R110*12 -> 0 | P110: 50 | R110: =$H$10 -> 0
B111: fnO;kax Hkrk | N111: =P111*R111*12 -> 0 | O111: =P111*R111*12 -> 0 | P111: =$E$11 -> 600 | R111: =$H$11 -> 0
B112: /kqykbZ HkRrkk | N112: =P112*R112*12 -> 0 | O112: =P112*R112*12 -> 0 | P112: 150 | R112: =H7+H8 -> 0
B113: ¼fQDl is½ vU; HkRRkk | N113: =$J$132 -> 0 | O113: =$I$132 -> 0
B114: dqqy HkRrk ;ksx | N114: =SUM(N105:N113) -> 3243072 | O114: =SUM(O105:O113) -> 3156204
B115: ;ksx laosru | N115: =N114+N104 -> 10903872 | O115: =O114+O104 -> 10611804
B116: ;k=k HkRrk | N116: =O24 -> 0 | O116: =N24 -> 0
B117: esfMdy HkRrk | N117: =O25 -> 0 | O117: =N25 -> 0
B118: ;ksx ;k=k HkRrk$esfMdy HkRRkk | N118: =N116+N117 -> 0 | O118: =O116+O117 -> 0
B119: egk;ksx | N119: =N115+N118 -> 10903872 | O119: =O115+O118 -> 10611804
C120: Ø-la- | D120: uke dkfeZd | E120: in uke | F120: tUe frfFk | G120: fu;qfä frfFk | H120: ekfld ekuns; | I120: 12 ekg dk ekuns; | J120: vkxkeh o"kZ es 12 ekg dk ekuns;
C121: 1 | D121: 2 | E121: 3 | F121: 4 | G121: 5 | H121: 6 | I121: 7 | J121: 8
C122: 1 | H122: 0 | I122: =H122*12 -> 0 | J122: =H122*12 -> 0
C123: 2 | H123: 0 | I123: =H123*12 -> 0 | J123: =H123*12 -> 0
C124: 3 | H124: 0 | I124: 0 | J124: 0
C125: 4 | H125: 0 | I125: 0 | J125: 0
C126: 5 | H126: 0 | I126: 0 | J126: 0
C127: 6 | H127: 0 | I127: 0 | J127: 0
C128: 7 | H128: 0 | I128: 0 | J128: 0
C129: 8 | H129: 0 | I129: 0 | J129: 0
C130: 9 | H130: 0 | I130: 0 | J130: 0
C131: 10 | H131: 0 | I131: 0 | J131: 0
E132: TOTAL | I132: =SUM(I122:I131) -> 0 | J132: =SUM(J122:J131) -> 0

Sheet rrr 08
A1: izi= 8 | L1: ctV gSM | M1: =Profile!$C$3 -> 2202-02-109-27-01
A2: fuf'pr O;;ksa ds foLr`r vuqeku vFkkZr~ vf/kdkfj;ksa o deZpkfj;ksa ds osru vuqeku o"kZ ¼vizSy ls ekpZ rd½ | P2: =Profile!$M$36 -> 2022&2023
A3: ¼ctV vuqeku vf/kdkfj;ksa }kjk foHkkxk/;{k dks izLrqr djus gsrq½ ys[kk dk 'kh"kZ % eq[; 'kh"kZ@minh?kZ 'kh"kZ@y?kq'kh"kZ@mi'kh"kZ xzqi 'kh"kZ--------------------vk;kstuk fHkUu@vk;kstuk@dsUnz izofrZr ;kstuk
A4: dk;kZy; %& | D4: =Profile!$D$36 -> 15tSM Jhxaxkuxj | I4: foHkkx dk uke %& | K4: =Profile!$G$2 -> f'k{kk foHkkx | M4: =Profile!$K$36 -> LVsV Q.M | N4: ekax la[;k& | O4: =Profile!$C$11 -> 24 | P4: =Profile!$G$35 -> 2405
B5: ctV Lohd`fr esa fo|ky; dh Ø-la- %& | E5: =Profile!$C$12 -> 25 | F5: dk;kZy; v/;{k MhMhvks uke %& | I5: =Profile!$G$4 -> izHkkr 'kekZ | K5: =Profile!$I$4 -> 0 | N5: j lgL=ksa esa
B6: Øe la[;k | C6: uke | E6: thih,Q @ ,uih,l uEcj | F6: in | G6: in dk Lohd`r osru | I6: =Profile!$J$38 -> ctV dh izkjfEHkd frfFk ;kfu 1ekpZ2022 dks deZpkjh dk osru | J6: igyh ekpZ ls vfUre Qjojh ds fy;s fu/kkZfjr jde | K6: o`f) tks bl vof/k esa gksxh | M6: =Profile!$N$38 -> vkxkeh o"kZ 2022&23 ds fy;s jde ¼dkye 8$10½ | N6: =Profile!$O$38 -> pkyw o"kZ ds fy;s la'kksf/kr vuqeku 2021&22 | O6: fo'ks"k fooj.k ¼osru o`f)½ | P6: deZpkjh vkbZ Mh
G7: =Profile!$H$39 -> xzsM is@ ysoy | K7: frfFk o`f) | L7: jde o`f)
B8: 1 | C8: 2 | E8: 3 | F8: 4 | G8: 5 | H8: 6 | I8: 7 | J8: 8 | K8: 9 | L8: 10 | M8: 11 | N8: 12 | O8: 13 | P8: 14
A9: =Profile!A44 -> jktif=r | B9: =Profile!B44 -> 1 | C9: =Profile!C44 -> Jh | D9: =Profile!D44 -> lqfer fxjh | E9: =Profile!F44 -> 0 | F9: =Profile!G44 -> iz/kkukpk;Z | G9: =Profile!H44 -> ysoy | H9: =Profile!I44 -> 16 | I9: =Profile!J44 -> 11000 | J9: =I9*12 -> 132000 | K9: =Profile!L44 -> 2022-07-01 | L9: =O9*8 -> 2400 | M9: =J9+L9 -> 134400 | N9: =M9-O9*12 -> 130800 | O9: =Profile!P44 -> 300 | P9: =Profile!E44 -> 0
A10: =Profile!A45 -> jktif=r | B10: =Profile!B45 -> 1 | C10: =Profile!C45 -> 0 | D10: =Profile!D45 -> 0 | E10: =Profile!F45 -> 0 | F10: =Profile!G45 -> O;k[;krk | G10: =Profile!H45 -> ysoy | H10: =Profile!I45 -> 16 | I10: =Profile!J45 -> 11000 | J10: =I10*12 -> 132000 | K10: =Profile!L45 -> 2022-07-01 | L10: =O10*8 -> 2400 | M10: =J10+L10 -> 134400 | N10: =M10-O10*12 -> 130800 | O10: =Profile!P45 -> 300 | P10: =Profile!E45 -> 0
A11: =Profile!A46 -> jktif=r | B11: =Profile!B46 -> 2 | C11: =Profile!C46 -> 0 | D11: =Profile!D46 -> 0 | E11: =Profile!F46 -> 0 | F11: =Profile!G46 -> O;k[;krk | G11: =Profile!H46 -> ysoy | H11: =Profile!I46 -> 16 | I11: =Profile!J46 -> 11000 | J11: 132000 | K11: =Profile!L46 -> 2022-07-01 | L11: 2400 | M11: 134400 | N11: =M11-O11*12 -> 130800 | O11: =Profile!P46 -> 300 | P11: =Profile!E46 -> 0
A12: =Profile!A47 -> jktif=r | B12: =Profile!B47 -> 3 | C12: =Profile!C47 -> 0 | D12: =Profile!D47 -> 0 | E12: =Profile!F47 -> 0 | F12: =Profile!G47 -> O;k[;krk | G12: =Profile!H47 -> ysoy | H12: =Profile!I47 -> 16 | I12: =Profile!J47 -> 11000 | J12: 132000 | K12: =Profile!L47 -> 2022-07-01 | L12: 2400 | M12: 134400 | N12: 130800 | O12: =Profile!P47 -> 300 | P12: =Profile!E47 -> 0
A13: =Profile!A48 -> jktif=r | B13: =Profile!B48 -> 4 | C13: =Profile!C48 -> 0 | D13: =Profile!D48 -> 0 | E13: =Profile!F48 -> 0 | F13: =Profile!G48 -> O;k[;krk | G13: =Profile!H48 -> ysoy | H13: =Profile!I48 -> 16 | I13: =Profile!J48 -> 11000 | J13: 132000 | K13: =Profile!L48 -> 2022-07-01 | L13: 2400 | M13: 134400 | N13: 130800 | O13: =Profile!P48 -> 300 | P13: =Profile!E48 -> 0
A14: =Profile!A49 -> jktif=r | B14: =Profile!B49 -> 5 | C14: =Profile!C49 -> 0 | D14: =Profile!D49 -> 0 | E14: =Profile!F49 -> 0 | F14: =Profile!G49 -> O;k[;krk | G14: =Profile!H49 -> ysoy | H14: =Profile!I49 -> 6 | I14: =Profile!J49 -> 11000 | J14: 132000 | K14: =Profile!L49 -> 2022-07-01 | L14: 2400 | M14: 134400 | N14: 130800 | O14: =Profile!P49 -> 300 | P14: =Profile!E49 -> 0
A15: =Profile!A50 -> jktif=r | B15: =Profile!B50 -> 6 | C15: =Profile!C50 -> 0 | D15: =Profile!D50 -> 0 | E15: =Profile!F50 -> 0 | F15: =Profile!G50 -> O;k[;krk | G15: =Profile!H50 -> ysoy | H15: =Profile!I50 -> 7 | I15: =Profile!J50 -> 11000 | J15: 132000 | K15: =Profile!L50 -> 2022-07-01 | L15: 2400 | M15: 134400 | N15: 130800 | O15: =Profile!P50 -> 300 | P15: =Profile!E50 -> 0
A16: =Profile!A51 -> jktif=r | B16: =Profile!B51 -> 7 | C16: =Profile!C51 -> 0 | D16: =Profile!D51 -> 0 | E16: =Profile!F51 -> 0 | F16: =Profile!G51 -> O;k[;krk | G16: =Profile!H51 -> ysoy | H16: =Profile!I51 -> 8 | I16: =Profile!J51 -> 11000 | J16: =I16*12 -> 132000 | K16: =Profile!L51 -> 2022-07-01 | L16: =O16*8 -> 2400 | M16: =J16+L16 -> 134400 | N16: =M16-O16*12 -> 130800 | O16: =Profile!P51 -> 300 | P16: =Profile!E51 -> 0
A17: =Profile!A52 -> jktif=r | B17: =Profile!B52 -> 8 | C17: =Profile!C52 -> 0 | D17: =Profile!D52 -> 0 | E17: =Profile!F52 -> 0 | F17: =Profile!G52 -> O;k[;krk | G17: =Profile!H52 -> ysoy | H17: =Profile!I52 -> 9 | I17: =Profile!J52 -> 11000 | J17: 132000 | K17: =Profile!L52 -> 2022-07-01 | L17: 2400 | M17: 134400 | N17: 130800 | O17: =Profile!P52 -> 300 | P17: =Profile!E52 -> 0
A18: =Profile!A53 -> jktif=r | B18: =Profile!B53 -> 9 | C18: =Profile!C53 -> 0 | D18: =Profile!D53 -> 0 | E18: =Profile!F53 -> 0 | F18: =Profile!G53 -> O;k[;krk | G18: =Profile!H53 -> ysoy | H18: =Profile!I53 -> 10 | I18: =Profile!J53 -> 11000 | J18: 132000 | K18: =Profile!L53 -> 2022-07-01 | L18: 2400 | M18: 134400 | N18: 130800 | O18: =Profile!P53 -> 300 | P18: =Profile!E53 -> 0
A19: =Profile!A54 -> jktif=r | B19: =Profile!B54 -> 10 | C19: =Profile!C54 -> 0 | D19: =Profile!D54 -> 0 | E19: =Profile!F54 -> 0 | F19: =Profile!G54 -> O;k[;krk | G19: =Profile!H54 -> ysoy | H19: =Profile!I54 -> 11 | I19: =Profile!J54 -> 11000 | J19: 132000 | K19: =Profile!L54 -> 2022-07-01 | L19: 2400 | M19: 134400 | N19: 130800 | O19: =Profile!P54 -> 300 | P19: =Profile!E54 -> 0
A20: =Profile!A55 -> jktif=r | B20: =Profile!B55 -> 11 | C20: =Profile!C55 -> 0 | D20: =Profile!D55 -> 0 | E20: =Profile!F55 -> 0 | F20: =Profile!G55 -> O;k[;krk | G20: =Profile!H55 -> ysoy | H20: =Profile!I55 -> 12 | I20: =Profile!J55 -> 11000 | J20: 132000 | K20: =Profile!L55 -> 2022-07-01 | L20: 2400 | M20: 134400 | N20: 130800 | O20: =Profile!P55 -> 300 | P20: =Profile!E55 -> 0
A21: =Profile!A56 -> jktif=r | B21: =Profile!B56 -> 12 | C21: =Profile!C56 -> 0 | D21: =Profile!D56 -> 0 | E21: =Profile!F56 -> 0 | F21: =Profile!G56 -> O;k[;krk | G21: =Profile!H56 -> ysoy | H21: =Profile!I56 -> 13 | I21: =Profile!J56 -> 11000 | J21: 132000 | K21: =Profile!L56 -> 2022-07-01 | L21: 2400 | M21: 134400 | N21: 130800 | O21: =Profile!P56 -> 300 | P21: =Profile!E56 -> 0
A22: =Profile!A57 -> jktif=r | B22: =Profile!B57 -> 13 | C22: =Profile!C57 -> 0 | D22: =Profile!D57 -> 0 | E22: =Profile!F57 -> 0 | F22: =Profile!G57 -> O;k[;krk | G22: =Profile!H57 -> ysoy | H22: =Profile!I57 -> 14 | I22: =Profile!J57 -> 11000 | J22: 132000 | K22: =Profile!L57 -> 2022-07-01 | L22: 2400 | M22: 134400 | N22: 130800 | O22: =Profile!P57 -> 300 | P22: =Profile!E57 -> 0
A23: =Profile!A58 -> jktif=r | B23: =Profile!B58 -> 14 | C23: =Profile!C58 -> 0 | D23: =Profile!D58 -> 0 | E23: =Profile!F58 -> 0 | F23: =Profile!G58 -> O;k[;krk | G23: =Profile!H58 -> ysoy | H23: =Profile!I58 -> 15 | I23: =Profile!J58 -> 11000 | J23: 132000 | K23: =Profile!L58 -> 2022-07-01 | L23: 2400 | M23: 134400 | N23: 130800 | O23: =Profile!P58 -> 300 | P23: =Profile!E58 -> 0
A24: =Profile!A59 -> jktif=r | B24: =Profile!B59 -> 15 | C24: =Profile!C59 -> 0 | D24: =Profile!D59 -> 0 | E24: =Profile!F59 -> 0 | F24: =Profile!G59 -> O;k[;krk | G24: =Profile!H59 -> ysoy | H24: =Profile!I59 -> 16 | I24: =Profile!J59 -> 11000 | J24: 132000 | K24: =Profile!L59 -> 2022-07-01 | L24: 2400 | M24: 134400 | N24: 130800 | O24: =Profile!P59 -> 300 | P24: =Profile!E59 -> 0
A25: =Profile!A60 -> jktif=r | B25: =Profile!B60 -> 16 | C25: =Profile!C60 -> 0 | D25: =Profile!D60 -> 0 | E25: =Profile!F60 -> 0 | F25: =Profile!G60 -> O;k[;krk | G25: =Profile!H60 -> ysoy | H25: =Profile!I60 -> 17 | I25: =Profile!J60 -> 11000 | J25: 132000 | K25: =Profile!L60 -> 2022-07-01 | L25: 2400 | M25: 134400 | N25: 130800 | O25: =Profile!P60 -> 300 | P25: =Profile!E60 -> 0
A26: =Profile!A61 -> jktif=r | B26: =Profile!B61 -> 17 | C26: =Profile!C61 -> 0 | D26: =Profile!D61 -> 0 | E26: =Profile!F61 -> 0 | F26: =Profile!G61 -> O;k[;krk | G26: =Profile!H61 -> ysoy | H26: =Profile!I61 -> 18 | I26: =Profile!J61 -> 11000 | J26: 132000 | K26: =Profile!L61 -> 2022-07-01 | L26: 2400 | M26: 134400 | N26: 130800 | O26: =Profile!P61 -> 300 | P26: =Profile!E61 -> 0
A27: =Profile!A62 -> jktif=r | B27: =Profile!B62 -> 18 | C27: =Profile!C62 -> 0 | D27: =Profile!D62 -> 0 | E27: =Profile!F62 -> 0 | F27: =Profile!G62 -> O;k[;krk | G27: =Profile!H62 -> ysoy | H27: =Profile!I62 -> 19 | I27: =Profile!J62 -> 11000 | J27: 132000 | K27: =Profile!L62 -> 2022-07-01 | L27: 2400 | M27: 134400 | N27: 130800 | O27: =Profile!P62 -> 300 | P27: =Profile!E62 -> 0
A28: =Profile!A63 -> jktif=r | B28: =Profile!B63 -> 19 | C28: =Profile!C63 -> 0 | D28: =Profile!D63 -> 0 | E28: =Profile!F63 -> 0 | F28: =Profile!G63 -> O;k[;krk | G28: =Profile!H63 -> ysoy | H28: =Profile!I63 -> 20 | I28: =Profile!J63 -> 11000 | J28: 132000 | K28: =Profile!L63 -> 2022-07-01 | L28: 2400 | M28: 134400 | N28: 130800 | O28: =Profile!P63 -> 300 | P28: =Profile!E63 -> 0
A29: =Profile!A64 -> jktif=r | B29: =Profile!B64 -> 20 | C29: =Profile!C64 -> 0 | D29: =Profile!D64 -> 0 | E29: =Profile!F64 -> 0 | F29: =Profile!G64 -> O;k[;krk | G29: =Profile!H64 -> ysoy | H29: =Profile!I64 -> 21 | I29: =Profile!J64 -> 11000 | J29: 132000 | K29: =Profile!L64 -> 2022-07-01 | L29: 2400 | M29: 134400 | N29: 130800 | O29: =Profile!P64 -> 300 | P29: =Profile!E64 -> 0
A30: =Profile!A65 -> jktif=r | B30: =Profile!B65 -> 21 | C30: =Profile!C65 -> 0 | D30: =Profile!D65 -> 0 | E30: =Profile!F65 -> 0 | F30: =Profile!G65 -> O;k[;krk | G30: =Profile!H65 -> ysoy | H30: =Profile!I65 -> 22 | I30: =Profile!J65 -> 11000 | J30: 132000 | K30: =Profile!L65 -> 2022-07-01 | L30: 2400 | M30: 134400 | N30: 130800 | O30: =Profile!P65 -> 300 | P30: =Profile!E65 -> 0
A31: =Profile!A66 -> vjktif=r | B31: =Profile!B66 -> 1 | C31: =Profile!C66 -> Jherh | D31: =Profile!D66 -> eUtq ukxiky | E31: =Profile!F66 -> 110061722142 | F31: =Profile!G66 -> ofj"B v/;kid | G31: =Profile!H66 -> ysoy | H31: =Profile!I66 -> 11 | I31: =Profile!J66 -> 11000 | J31: 132000 | K31: =Profile!L66 -> 2022-07-01 | L31: 2400 | M31: 134400 | N31: 130800 | O31: =Profile!P66 -> 300 | P31: =Profile!E66 -> RJGA200535013285
A32: =Profile!A67 -> vjktif=r | B32: =Profile!B67 -> 2 | C32: =Profile!C67 -> Jherh | D32: =Profile!D67 -> dkS'kY;k | E32: =Profile!F67 -> 110191483960 | F32: =Profile!G67 -> ofj"B v/;kid | G32: =Profile!H67 -> ysoy | H32: =Profile!I67 -> 11 | I32: =Profile!J67 -> 11000 | J32: =I32*12 -> 132000 | K32: =Profile!L67 -> 2022-07-01 | L32: 2400 | M32: 134400 | N32: 130800 | O32: =Profile!P67 -> 300 | P32: =Profile!E67 -> RJGA201435027389
A33: =Profile!A68 -> vjktif=r | B33: =Profile!B68 -> 3 | C33: =Profile!C68 -> 0 | D33: =Profile!D68 -> 0 | E33: =Profile!F68 -> 0 | F33: =Profile!G68 -> ofj"B v/;kid | G33: =Profile!H68 -> ysoy | H33: =Profile!I68 -> 11 | I33: =Profile!J68 -> 11000 | J33: 132000 | K33: =Profile!L68 -> 2022-07-01 | L33: 2400 | M33: 134400 | N33: 130800 | O33: =Profile!P68 -> 300 | P33: =Profile!E68 -> 0
A34: =Profile!A69 -> vjktif=r | B34: =Profile!B69 -> 4 | C34: =Profile!C69 -> 0 | D34: =Profile!D69 -> 0 | E34: =Profile!F69 -> 0 | F34: =Profile!G69 -> ofj"B v/;kid | G34: =Profile!H69 -> ysoy | H34: =Profile!I69 -> 11 | I34: =Profile!J69 -> 11000 | J34: 132000 | K34: =Profile!L69 -> 2022-07-01 | L34: 2400 | M34: 134400 | N34: 130800 | O34: =Profile!P69 -> 300 | P34: =Profile!E69 -> 0
A35: =Profile!A70 -> vjktif=r | B35: =Profile!B70 -> 5 | C35: =Profile!C70 -> 0 | D35: =Profile!D70 -> 0 | E35: =Profile!F70 -> 0 | F35: =Profile!G70 -> ofj"B v/;kid | G35: =Profile!H70 -> ysoy | H35: =Profile!I70 -> 11 | I35: =Profile!J70 -> 11000 | J35: 132000 | K35: =Profile!L70 -> 2022-07-01 | L35: 2400 | M35: 134400 | N35: 130800 | O35: =Profile!P70 -> 300 | P35: =Profile!E70 -> 0
A36: =Profile!A71 -> vjktif=r | B36: =Profile!B71 -> 6 | C36: =Profile!C71 -> 0 | D36: =Profile!D71 -> 0 | E36: =Profile!F71 -> 0 | F36: =Profile!G71 -> ofj"B v/;kid | G36: =Profile!H71 -> ysoy | H36: =Profile!I71 -> 11 | I36: =Profile!J71 -> 11000 | J36: =I36*12 -> 132000 | K36: =Profile!L71 -> 2022-07-01 | L36: =O36*8 -> 2400 | M36: =J36+L36 -> 134400 | N36: =M36-O36*12 -> 130800 | O36: =Profile!P71 -> 300 | P36: =Profile!E71 -> 0
A37: =Profile!A72 -> vjktif=r | B37: =Profile!B72 -> 7 | C37: =Profile!C72 -> 0 | D37: =Profile!D72 -> 0 | E37: =Profile!F72 -> 0 | F37: =Profile!G72 -> ofj"B v/;kid | G37: =Profile!H72 -> ysoy | H37: =Profile!I72 -> 7 | I37: =Profile!J72 -> 11000 | J37: =I37*12 -> 132000 | K37: =Profile!L72 -> 2022-07-01 | L37: =O37*8 -> 2400 | M37: =J37+L37 -> 134400 | N37: =M37-O37*12 -> 130800 | O37: =Profile!P72 -> 300 | P37: =Profile!E72 -> 0
A38: =Profile!A73 -> vjktif=r | B38: =Profile!B73 -> 8 | C38: =Profile!C73 -> 0 | D38: =Profile!D73 -> 0 | E38: =Profile!F73 -> 0 | F38: =Profile!G73 -> ofj"B v/;kid | G38: =Profile!H73 -> ysoy | H38: =Profile!I73 -> 8 | I38: =Profile!J73 -> 11000 | J38: 132000 | K38: =Profile!L73 -> 2022-07-01 | L38: 2400 | M38: 134400 | N38: 130800 | O38: =Profile!P73 -> 300 | P38: =Profile!E73 -> 0
A39: =Profile!A74 -> vjktif=r | B39: =Profile!B74 -> 9 | C39: =Profile!C74 -> 0 | D39: =Profile!D74 -> 0 | E39: =Profile!F74 -> 0 | F39: =Profile!G74 -> ofj"B v/;kid | G39: =Profile!H74 -> ysoy | H39: =Profile!I74 -> 9 | I39: =Profile!J74 -> 11000 | J39: 132000 | K39: =Profile!L74 -> 2022-07-01 | L39: 2400 | M39: 134400 | N39: 130800 | O39: =Profile!P74 -> 300 | P39: =Profile!E74 -> 0
A40: =Profile!A75 -> vjktif=r | B40: =Profile!B75 -> 10 | C40: =Profile!C75 -> 0 | D40: =Profile!D75 -> 0 | E40: =Profile!F75 -> 0 | F40: =Profile!G75 -> ofj"B v/;kid | G40: =Profile!H75 -> ysoy | H40: =Profile!I75 -> 10 | I40: =Profile!J75 -> 11000 | J40: 132000 | K40: =Profile!L75 -> 2022-07-01 | L40: 2400 | M40: 134400 | N40: 130800 | O40: =Profile!P75 -> 300 | P40: =Profile!E75 -> 0
A41: =Profile!A76 -> vjktif=r | B41: =Profile!B76 -> 11 | C41: =Profile!C76 -> 0 | D41: =Profile!D76 -> 0 | E41: =Profile!F76 -> 0 | F41: =Profile!G76 -> ofj"B v/;kid | G41: =Profile!H76 -> ysoy | H41: =Profile!I76 -> 11 | I41: =Profile!J76 -> 11000 | J41: 132000 | K41: =Profile!L76 -> 2022-07-01 | L41: 2400 | M41: 134400 | N41: 130800 | O41: =Profile!P76 -> 300 | P41: =Profile!E76 -> 0
A42: =Profile!A77 -> vjktif=r | B42: =Profile!B77 -> 12 | C42: =Profile!C77 -> 0 | D42: =Profile!D77 -> 0 | E42: =Profile!F77 -> 0 | F42: =Profile!G77 -> ofj"B v/;kid | G42: =Profile!H77 -> ysoy | H42: =Profile!I77 -> 12 | I42: =Profile!J77 -> 11000 | J42: 132000 | K42: =Profile!L77 -> 2022-07-01 | L42: 2400 | M42: 134400 | N42: 130800 | O42: =Profile!P77 -> 300 | P42: =Profile!E77 -> 0
A43: =Profile!A78 -> vjktif=r | B43: =Profile!B78 -> 13 | C43: =Profile!C78 -> 0 | D43: =Profile!D78 -> 0 | E43: =Profile!F78 -> 0 | F43: =Profile!G78 -> ofj"B v/;kid | G43: =Profile!H78 -> ysoy | H43: =Profile!I78 -> 13 | I43: =Profile!J78 -> 11000 | J43: 132000 | K43: =Profile!L78 -> 2022-07-01 | L43: 2400 | M43: 134400 | N43: 130800 | O43: =Profile!P78 -> 300 | P43: =Profile!E78 -> 0
A44: =Profile!A79 -> vjktif=r | B44: =Profile!B79 -> 14 | C44: =Profile!C79 -> 0 | D44: =Profile!D79 -> 0 | E44: =Profile!F79 -> 0 | F44: =Profile!G79 -> ofj"B v/;kid | G44: =Profile!H79 -> ysoy | H44: =Profile!I79 -> 14 | I44: =Profile!J79 -> 11000 | J44: 132000 | K44: =Profile!L79 -> 2022-07-01 | L44: 2400 | M44: 134400 | N44: 130800 | O44: =Profile!P79 -> 300 | P44: =Profile!E79 -> 0
A45: =Profile!A80 -> vjktif=r | B45: =Profile!B80 -> 15 | C45: =Profile!C80 -> 0 | D45: =Profile!D80 -> 0 | E45: =Profile!F80 -> 0 | F45: =Profile!G80 -> ofj"B v/;kid | G45: =Profile!H80 -> ysoy | H45: =Profile!I80 -> 15 | I45: =Profile!J80 -> 11000 | J45: 132000 | K45: =Profile!L80 -> 2022-07-01 | L45: 2400 | M45: 134400 | N45: 130800 | O45: =Profile!P80 -> 300 | P45: =Profile!E80 -> 0
A46: =Profile!A81 -> vjktif=r | B46: =Profile!B81 -> 16 | C46: =Profile!C81 -> 0 | D46: =Profile!D81 -> 0 | E46: =Profile!F81 -> 0 | F46: =Profile!G81 -> ofj"B v/;kid | G46: =Profile!H81 -> ysoy | H46: =Profile!I81 -> 16 | I46: =Profile!J81 -> 11000 | J46: 132000 | K46: =Profile!L81 -> 2022-07-01 | L46: 2400 | M46: 134400 | N46: 130800 | O46: =Profile!P81 -> 300 | P46: =Profile!E81 -> 0
A47: =Profile!A82 -> vjktif=r | B47: =Profile!B82 -> 17 | C47: =Profile!C82 -> 0 | D47: =Profile!D82 -> 0 | E47: =Profile!F82 -> 0 | F47: =Profile!G82 -> ofj"B v/;kid | G47: =Profile!H82 -> ysoy | H47: =Profile!I82 -> 17 | I47: =Profile!J82 -> 11000 | J47: 132000 | K47: =Profile!L82 -> 2022-07-01 | L47: 2400 | M47: 134400 | N47: 130800 | O47: =Profile!P82 -> 300 | P47: =Profile!E82 -> 0
A48: =Profile!A83 -> vjktif=r | B48: =Profile!B83 -> 18 | C48: =Profile!C83 -> 0 | D48: =Profile!D83 -> 0 | E48: =Profile!F83 -> 0 | F48: =Profile!G83 -> ofj"B v/;kid | G48: =Profile!H83 -> ysoy | H48: =Profile!I83 -> 18 | I48: =Profile!J83 -> 11000 | J48: 132000 | K48: =Profile!L83 -> 2022-07-01 | L48: 2400 | M48: 134400 | N48: 130800 | O48: =Profile!P83 -> 300 | P48: =Profile!E83 -> 0
A49: =Profile!A84 -> vjktif=r | B49: =Profile!B84 -> 19 | C49: =Profile!C84 -> 0 | D49: =Profile!D84 -> 0 | E49: =Profile!F84 -> 0 | F49: =Profile!G84 -> ofj"B v/;kid | G49: =Profile!H84 -> ysoy | H49: =Profile!I84 -> 19 | I49: =Profile!J84 -> 11000 | J49: 132000 | K49: =Profile!L84 -> 2022-07-01 | L49: 2400 | M49: 134400 | N49: 130800 | O49: =Profile!P84 -> 300 | P49: =Profile!E84 -> 0
A50: =Profile!A85 -> vjktif=r | B50: =Profile!B85 -> 20 | C50: =Profile!C85 -> 0 | D50: =Profile!D85 -> 0 | E50: =Profile!F85 -> 0 | F50: =Profile!G85 -> ofj"B v/;kid | G50: =Profile!H85 -> ysoy | H50: =Profile!I85 -> 20 | I50: =Profile!J85 -> 11000 | J50: 132000 | K50: =Profile!L85 -> 2022-07-01 | L50: 2400 | M50: 134400 | N50: 130800 | O50: =Profile!P85 -> 300 | P50: =Profile!E85 -> 0
A51: =Profile!A86 -> vjktif=r | B51: =Profile!B86 -> 21 | C51: =Profile!C86 -> 0 | D51: =Profile!D86 -> 0 | E51: =Profile!F86 -> 0 | F51: =Profile!G86 -> ofj"B v/;kid | G51: =Profile!H86 -> ysoy | H51: =Profile!I86 -> 21 | I51: =Profile!J86 -> 11000 | J51: 132000 | K51: =Profile!L86 -> 2022-07-01 | L51: 2400 | M51: 134400 | N51: 130800 | O51: =Profile!P86 -> 300 | P51: =Profile!E86 -> 0
A52: =Profile!A87 -> vjktif=r | B52: =Profile!B87 -> 22 | C52: =Profile!C87 -> 0 | D52: =Profile!D87 -> 0 | E52: =Profile!F87 -> 0 | F52: =Profile!G87 -> ofj"B v/;kid | G52: =Profile!H87 -> ysoy | H52: =Profile!I87 -> 22 | I52: =Profile!J87 -> 11000 | J52: 132000 | K52: =Profile!L87 -> 2022-07-01 | L52: 2400 | M52: 134400 | N52: 130800 | O52: =Profile!P87 -> 300 | P52: =Profile!E87 -> 0
A53: =Profile!A88 -> vjktif=r | B53: =Profile!B88 -> 1 | C53: =Profile!C88 -> Jh | D53: =Profile!D88 -> nsosUnz dqekj lqFkkj | E53: =Profile!F88 -> 110041738889 | F53: =Profile!G88 -> v/;kid&2 | G53: =Profile!H88 -> ysoy | H53: =Profile!I88 -> 23 | I53: =Profile!J88 -> 11000 | J53: 132000 | K53: =Profile!L88 -> 2022-07-01 | L53: 2400 | M53: 134400 | N53: 130800 | O53: =Profile!P88 -> 300 | P53: =Profile!E88 -> RJBI200509033977
A54: =Profile!A89 -> vjktif=r | B54: =Profile!B89 -> 2 | C54: =Profile!C89 -> Jh | D54: =Profile!D89 -> euftUnz flag | E54: =Profile!F89 -> 0 | F54: =Profile!G89 -> v/;kid&2 | G54: =Profile!H89 -> ysoy | H54: =Profile!I89 -> 24 | I54: =Profile!J89 -> 11000 | J54: 132000 | K54: =Profile!L89 -> 2022-07-01 | L54: 2400 | M54: 134400 | N54: 130800 | O54: =Profile!P89 -> 300 | P54: =Profile!E89 -> 0
A55: =Profile!A90 -> vjktif=r | B55: =Profile!B90 -> 3 | C55: =Profile!C90 -> Jherh | D55: =Profile!D90 -> jf'e dVkfj;k | E55: =Profile!F90 -> 0 | F55: =Profile!G90 -> v/;kid&2 | G55: =Profile!H90 -> ysoy | H55: =Profile!I90 -> 25 | I55: =Profile!J90 -> 11000 | J55: 132000 | K55: =Profile!L90 -> 2022-07-01 | L55: 2400 | M55: 134400 | N55: =M55-O55*12 -> 130800 | O55: =Profile!P90 -> 300 | P55: =Profile!E90 -> 0
A56: =Profile!A91 -> vjktif=r | B56: =Profile!B91 -> 4 | C56: =Profile!C91 -> Jherh | D56: =Profile!D91 -> js[kk jkuh | E56: =Profile!F91 -> 0 | F56: =Profile!G91 -> v/;kid&1 | G56: =Profile!H91 -> ysoy | H56: =Profile!I91 -> 26 | I56: =Profile!J91 -> 11000 | J56: 132000 | K56: =Profile!L91 -> 2022-07-01 | L56: 2400 | M56: 134400 | N56: 130800 | O56: =Profile!P91 -> 300 | P56: =Profile!E91 -> 0
A57: =Profile!A92 -> vjktif=r | B57: =Profile!B92 -> 5 | C57: =Profile!C92 -> Jherh | D57: =Profile!D92 -> lqq"kek jkuh | E57: =Profile!F92 -> 0 | F57: =Profile!G92 -> v/;kid&1 | G57: =Profile!H92 -> ysoy | H57: =Profile!I92 -> 27 | I57: =Profile!J92 -> 11000 | J57: 132000 | K57: =Profile!L92 -> 2022-07-01 | L57: 2400 | M57: 134400 | N57: 130800 | O57: =Profile!P92 -> 300 | P57: =Profile!E92 -> 0
A58: =Profile!A93 -> vjktif=r | B58: =Profile!B93 -> 6 | C58: =Profile!C93 -> 0 | D58: =Profile!D93 -> 0 | E58: =Profile!F93 -> 0 | F58: =Profile!G93 -> v/;kid&1 | G58: =Profile!H93 -> ysoy | H58: =Profile!I93 -> 28 | I58: =Profile!J93 -> 11000 | J58: 132000 | K58: =Profile!L93 -> 2022-07-01 | L58: 2400 | M58: 134400 | N58: 130800 | O58: =Profile!P93 -> 300 | P58: =Profile!E93 -> 0
A59: =Profile!A94 -> vjktif=r | B59: =Profile!B94 -> 1 | C59: =Profile!C94 -> Jh | D59: =Profile!D94 -> iou dqekj xksnkjk | E59: =Profile!F94 -> 0 | F59: =Profile!G94 -> 'kk-f'k{kd | G59: =Profile!H94 -> ysoy | H59: =Profile!I94 -> 29 | I59: =Profile!J94 -> 11000 | J59: 132000 | K59: =Profile!L94 -> 2022-07-01 | L59: 2400 | M59: 134400 | N59: 130800 | O59: =Profile!P94 -> 300 | P59: =Profile!E94 -> 0
A60: =Profile!A95 -> vjktif=r | B60: =Profile!B95 -> 1 | C60: =Profile!C95 -> 0 | D60: =Profile!D95 -> 0 | E60: =Profile!F95 -> 0 | F60: =Profile!G95 -> dk;kZy; lgk;d | G60: =Profile!H95 -> ysoy | H60: =Profile!I95 -> 30 | I60: =Profile!J95 -> 11000 | J60: 132000 | K60: =Profile!L95 -> 2022-07-01 | L60: 2400 | M60: 134400 | N60: 130800 | O60: =Profile!P95 -> 300 | P60: =Profile!E95 -> 0
A61: =Profile!A96 -> vjktif=r | B61: =Profile!B96 -> 1 | C61: =Profile!C96 -> Jh | D61: =Profile!D96 -> lqfer fxjh | E61: =Profile!F96 -> 0 | F61: =Profile!G96 -> ofj"B fyfid | G61: =Profile!H96 -> ysoy | H61: =Profile!I96 -> 31 | I61: =Profile!J96 -> 11000 | J61: 132000 | K61: =Profile!L96 -> 2022-07-01 | L61: 2400 | M61: 134400 | N61: 130800 | O61: =Profile!P96 -> 300 | P61: =Profile!E96 -> 0
A62: =Profile!A97 -> vjktif=r | B62: =Profile!B97 -> 1 | C62: =Profile!C97 -> 0 | D62: =Profile!D97 -> 0 | E62: =Profile!F97 -> 0 | F62: =Profile!G97 -> dfu"B fyfid | G62: =Profile!H97 -> ysoy | H62: =Profile!I97 -> 32 | I62: =Profile!J97 -> 11000 | J62: 132000 | K62: =Profile!L97 -> 2022-07-01 | L62: 2400 | M62: 134400 | N62: 130800 | O62: =Profile!P97 -> 300 | P62: =Profile!E97 -> 0
A63: =Profile!A98 -> vjktif=r | B63: =Profile!B98 -> 1 | C63: =Profile!C98 -> Jherh | D63: =Profile!D98 -> y{eh nsoh | E63: =Profile!F98 -> 0 | F63: =Profile!G98 -> lgk;d deZpkjh | G63: =Profile!H98 -> ysoy | H63: =Profile!I98 -> 33 | I63: =Profile!J98 -> 11000 | J63: 132000 | K63: =Profile!L98 -> 2022-07-01 | L63: 2400 | M63: 134400 | N63: 130800 | O63: =Profile!P98 -> 300 | P63: =Profile!E98 -> 0
A64: =Profile!A99 -> vjktif=r | B64: =Profile!B99 -> 2 | C64: =Profile!C99 -> Jh | D64: =Profile!D99 -> cyoUr jk; | E64: =Profile!F99 -> 0 | F64: =Profile!G99 -> lgk;d deZpkjh | G64: =Profile!H99 -> ysoy | H64: =Profile!I99 -> 34 | I64: =Profile!J99 -> 11000 | J64: 132000 | K64: =Profile!L99 -> 2022-07-01 | L64: 2400 | M64: 134400 | N64: 130800 | O64: =Profile!P99 -> 300 | P64: =Profile!E99 -> 0
A65: =Profile!A100 -> vjktif=r | B65: =Profile!B100 -> 3 | C65: =Profile!C100 -> 0 | D65: =Profile!D100 -> 0 | E65: =Profile!F100 -> 0 | F65: =Profile!G100 -> lgk;d deZpkjh | G65: =Profile!H100 -> ysoy | H65: =Profile!I100 -> 35 | I65: =Profile!J100 -> 11000 | J65: 132000 | K65: =Profile!L100 -> 2022-07-01 | L65: 2400 | M65: 134400 | N65: 130800 | O65: =Profile!P100 -> 300 | P65: =Profile!E100 -> 
B67: jktif=r ;ksx | I67: =Profile!J102 -> 242000 | J67: =Profile!K102 -> 2904000 | L67: =Profile!M102 -> 52800 | M67: =Profile!N102 -> 2956800 | N67: =Profile!O102 -> 2877600
B68: vjktif=r ;ksx | I68: =Profile!J103 -> 385000 | J68: =Profile!K103 -> 4620000 | L68: =Profile!M103 -> 84000 | M68: =Profile!N103 -> 4704000 | N68: =Profile!O103 -> 4578000
B69: ;ksx jktif=r$vjktif=r | I69: =Profile!J104 -> 627000 | J69: =Profile!K104 -> 7524000 | L69: =Profile!M104 -> 136800 | M69: =Profile!N104 -> 7660800 | N69: =Profile!O104 -> 7455600
B70: =Profile!$B$105 -> egaxkbZ HkRrk 28izfr'kr | M70: =Profile!N105 -> 2145024 | N70: =Profile!O105 -> 2087568
B71: =Profile!$B$106 -> edku fdjk;k 9izfr'kr | M71: =Profile!N106 -> 689472 | N71: =Profile!O106 -> 671004
B72: =Profile!$B$107 -> egaxkbZ HkRRkk ,sfj;j¼----izfr'kr½ | M72: =Profile!N107 -> 0 | N72: =Profile!O107 -> 0
B73: =Profile!$B$108 -> cksul | M73: =Profile!N108 -> 0 | N73: =Profile!O108 -> 0
B74: =Profile!B109 -> lefiZr vodk'k | M74: =Profile!N109 -> 408576 | N74: =Profile!O109 -> 397632
B75: =Profile!B110 -> dSf'k;j HkRrk | M75: =Profile!N110 -> 0 | N75: =Profile!O110 -> 0
B76: =Profile!B111 -> fnO;kax Hkrk | M76: =Profile!N111 -> 0 | N76: =Profile!O111 -> 0
B77: =Profile!B112 -> /kqykbZ HkRrkk | M77: =Profile!N112 -> 0 | N77: =Profile!O112 -> 0
B78: =Profile!B113 -> ¼fQDl is½ vU; HkRRkk | M78: =Profile!N113 -> 0 | N78: =Profile!O113 -> 0
B79: =Profile!$B$114 -> dqqy HkRrk ;ksx | M79: =Profile!N114 -> 3243072 | N79: =Profile!O114 -> 3156204
B80: =Profile!B115 -> ;ksx laosru | M80: =Profile!N115 -> 10903872 | N80: =Profile!O115 -> 10611804
B81: =Profile!B116 -> ;k=k HkRrk | M81: =Profile!N116 -> 0 | N81: =Profile!O116 -> 0
B82: =Profile!B117 -> esfMdy HkRrk | M82: =Profile!N117 -> 0 | N82: =Profile!O117 -> 0
B83: =Profile!B118 -> ;ksx ;k=k HkRrk$esfMdy HkRRkk | M83: =Profile!N118 -> 0 | N83: =Profile!O118 -> 0
B84: =Profile!B119 -> egk;ksx | M84: =Profile!N119 -> 10903872 | N84: =Profile!O119 -> 10611804
D86: izekf.kr fd;k tkrk gS fd mi;qZDr lwpuk dh esjs }kjk O;fDrxr :Ik ls tkap dj yh xbZ gS vksj bls lgh ik;k x;k gSA
M88: =Profile!A3 -> ihbZbZvks 10tSM ,oa iz/kkukpk;Z
I89: rS;kj drkZ %& | J89: =Profile!G6 -> lqfer fxjh | M89: =Profile!A4 -> jktdh; mPp ek/;fed fo|ky;
J90: =Profile!$I$6 -> 9414631519 | M90: =Profile!A5 -> 15tSM Jhxaxkuxj
M91: =Profile!$F$4 -> 2405

Sheet rrr 09
A1: izi= 9 | J1: ='rrr 08'!$P$2 -> 2022&2023 | M1: ctV gSM | N1: =Profile!$C$3 -> 2202-02-109-27-01
A2: fuf'pr O;;ksa ds foLr`r vuqeku vFkkZr~ vf/kdkfj;ksa o deZpkfj;ksa ds osru vuqeku o"kZ ¼vizSy ls ekpZ rd½ | S2: =Profile!$K$36 -> LVsV Q.M
A3: ¼ctV vuqeku vf/kdkfj;ksa }kjk foHkkxk/;{k dks izLrqr djus gsrq½ ys[kk dk 'kh"kZ % eq[; 'kh"kZ@minh?kZ 'kh"kZ@y?kq'kh"kZ@mi'kh"kZ xzqi 'kh"kZ--------------------vk;kstuk fHkUu@vk;kstuk@dsUnz izofrZr ;kstuk
A4: dk;kZy; & | E4: =Profile!$D$36 -> 15tSM Jhxaxkuxj | L4: foHkkx dk uke %& | O4: =Profile!$G$2 -> f'k{kk foHkkx | S4: =Profile!$G$35 -> 2405
B5: ctV Lohd`fr esa fo|ky; dh Ø-la- %& | F5: =Profile!$C$12 -> 25 | H5: dk;kZy; v/;{k MhMhvks uke %& | K5: =Profile!$G$4 -> izHkkr 'kekZ | N5: =Profile!$I$4 -> 0 | S5: j lgL=ksa esa
A6: Øe l[;k | B6: ys[kk 'kh"kZd ¼foLr`r 'kh"kZ½ | C6: nrer@ ize`r | D6: okLrfod O;; vkadM+s¼xr iwoZ rhu o"kksZ ds½ | G6: vk; O;; ds vuqeku ckcr~ pkyw o"kZ 21&22 | H6: okLrfod O;; vkadM+s | K6: vxLr ls ekpZ rd dk laHkkfor O;; ¼pkyw o"kZ½ | L6: la'kksf/kr vuqeku 2021&22 ¼pkyw o"kZ½ 9$11 | M6: vk; O;; ds vuqeku ckcr 2022&23¼vkxkeh o"kZ½ | P6: o`f)¼$½ ;k deh¼&½ | S6: uohu vkbVe | T6: fo'ks"k fooj.k
D7: =Profile!F22 -> 2018-19 | E7: =Profile!G22 -> 2019-20 | F7: =Profile!H22 -> 20&21 esa ekpZ2021 dk th-,-19 | H7: vxLr ls ekpZ rd ¼xr o"kZ½ | I7: viszy ls tqykbZ rd ¼pkyw o"kZ½ | J7: dkye 8 o 9 dk ;ksx | M7: dfeVsM | N7: uohu | O7: dqy ¼13+14½ | P7: 7 vkSj 12 esa | Q7: 10 vkSj 12 esa | R7: 12 vkSj 15 esa | S7: gka @ ugha
A8: 1 | B8: 2 | C8: 3 | D8: 4 | E8: 5 | F8: 6 | G8: 7 | H8: 8 | I8: 9 | J8: 10 | K8: 11 | L8: 12 | M8: 13 | N8: 14 | O8: 15 | P8: 16 | Q8: 17 | R8: 18 | S8: 19 | T8: 20
B9: ;ksx jk$vjk | L9: ='rrr 08'!$N$69 -> 7455600 | M9: ='rrr 08'!$M$69 -> 7660800 | O9: =M9+N9 -> 7660800
A10: =Profile!A105 -> 0.28 | B10: =Profile!$B$105 -> egaxkbZ HkRrk 28izfr'kr | L10: ='rrr 08'!N70 -> 2087568 | M10: ='rrr 08'!M70 -> 2145024 | O10: =M10+N10 -> 2145024
A11: =Profile!A106 -> 0.09 | B11: =Profile!$B$106 -> edku fdjk;k 9izfr'kr | L11: ='rrr 08'!N71 -> 671004 | M11: ='rrr 08'!M71 -> 689472 | O11: 689472
A12: =Profile!A107 -> 0 | B12: =Profile!$B$107 -> egaxkbZ HkRRkk ,sfj;j¼----izfr'kr½ | L12: ='rrr 08'!N72 -> 0 | M12: ='rrr 08'!M72 -> 0 | O12: 0
B13: cksul | L13: ='rrr 08'!N73 -> 0 | M13: ='rrr 08'!M73 -> 0 | O13: 0
B14: lefiZr vodk'k | L14: ='rrr 08'!N74 -> 397632 | M14: ='rrr 08'!M74 -> 408576 | O14: 408576
B15: dSf'k;j HkRrk | L15: ='rrr 08'!N75 -> 0 | M15: ='rrr 08'!M75 -> 0 | O15: 0
B16: fnO;kax HkRRkk | L16: ='rrr 08'!N76 -> 0 | M16: ='rrr 08'!M76 -> 0 | O16: 0
B17: ='rrr 08'!B77 -> /kqykbZ HkRrkk | L17: ='rrr 08'!N77 -> 0 | M17: ='rrr 08'!M77 -> 0 | O17: 0
B18: ='rrr 08'!B78 -> ¼fQDl is½ vU; HkRRkk | L18: ='rrr 08'!$N$78 -> 0 | M18: ='rrr 08'!$M$78 -> 0 | O18: 0
B19: ;ksx HkRrs | L19: ='rrr 08'!N79 -> 3156204 | M19: ='rrr 08'!M79 -> 3243072 | O19: 3243072
B20: ;ksx laosru | D20: =Profile!F23 -> 5555511 | E20: =Profile!G23 -> 6303330 | F20: =Profile!H23 -> 7837900 | G20: =Profile!$C$23 -> 7373000 | H20: =Profile!P23 -> 5559492 | I20: =Profile!Q23 -> 2558795 | J20: =H20+I20 -> 8118287 | K20: =L20-I20 -> 8053009 | L20: ='rrr 08'!N80 -> 10611804 | M20: ='rrr 08'!M80 -> 10903872 | O20: 10903872
B21: ;k=k HkRrk | D21: =Profile!F24 -> 0 | E21: =Profile!G24 -> 30000 | F21: =Profile!H24 -> 22910 | G21: =Profile!C24 -> 0 | H21: =Profile!P24 -> 22910 | I21: =Profile!Q24 -> 0 | J21: =H21+I21 -> 22910 | K21: =L21-I21 -> 0 | L21: ='rrr 08'!N81 -> 0 | M21: ='rrr 08'!M81 -> 0 | O21: 0
B22: esfMdy HkRrk | D22: =Profile!F25 -> 0 | E22: =Profile!G25 -> 0 | F22: =Profile!H25 -> 0 | G22: =Profile!C25 -> 0 | H22: =Profile!P25 -> 0 | I22: =Profile!Q25 -> 0 | J22: 0 | K22: =L22-I22 -> 0 | L22: ='rrr 08'!N82 -> 0 | M22: ='rrr 08'!M82 -> 0 | O22: 0
B23: ;ksx ;k=k esfMdy | D23: =D21+D22 -> 0 | E23: =E21+E22 -> 30000 | F23: 22910 | G23: =G21+G22 -> 0 | H23: =H21+H22 -> 22910 | I23: 0 | J23: 22910 | K23: 0 | L23: ='rrr 08'!N83 -> 0 | M23: ='rrr 08'!M83 -> 0 | O23: 0
B24: ;ksx loZ;ksx | D24: =D23+D20 -> 5555511 | E24: 6333330 | F24: 7860810 | G24: =G23+G20 -> 7373000 | H24: =H23+H20 -> 5582402 | I24: =I23+I20 -> 2558795 | J24: =J23+J20 -> 8141197 | K24: =K23+K20 -> 8053009 | L24: =L20+L23 -> 10611804 | M24: =M20+M23 -> 10903872 | O24: 10903872
B25: =Profile!A26 -> dk;kZy; O;; | D25: =Profile!F26 -> 0 | E25: =Profile!G26 -> 0 | F25: =Profile!H26 -> 0 | G25: =Profile!C26 -> 0 | H25: =Profile!P26 -> 0 | I25: =Profile!Q26 -> 0 | J25: =H25+I25 -> 0 | K25: =L25-I25 -> 0 | L25: =Profile!AK26 -> 0 | M25: =Profile!AL24 -> 0 | O25: 0
B26: =Profile!A27 -> fdjk;k dj jk;fYV | D26: =Profile!F27 -> 0 | E26: =Profile!G27 -> 0 | F26: =Profile!H27 -> 0 | G26: =Profile!C27 -> 0 | H26: =Profile!P27 -> 0 | I26: =Profile!Q27 -> 0 | J26: =H26+I26 -> 0 | K26: =L26-I26 -> 0 | L26: =Profile!AK27 -> 0 | M26: =Profile!AL25 -> 0 | O26: 0
B27: =Profile!A28 -> e'khujh lkt lkeku | D27: =Profile!F28 -> 0 | E27: =Profile!G28 -> 0 | F27: =Profile!H28 -> 0 | G27: =Profile!C28 -> 0 | H27: =Profile!P28 -> 0 | I27: =Profile!Q28 -> 0 | J27: 0 | K27: 0 | L27: =Profile!AK28 -> 0 | M27: =Profile!AL26 -> 0 | O27: 0
B28: =Profile!A29 -> iqLrdky; | D28: =Profile!F29 -> 0 | E28: =Profile!G29 -> 0 | F28: =Profile!H29 -> 0 | G28: =Profile!C29 -> 0 | H28: =Profile!P29 -> 0 | I28: =Profile!Q29 -> 800 | J28: 800 | K28: =L28-I28 -> 0 | L28: =Profile!AK29 -> 800 | M28: =Profile!AL27 -> 0 | O28: 0
B29: =Profile!A30 -> iz;ksx'kkyk | D29: =Profile!F30 -> 0 | E29: =Profile!G30 -> 0 | F29: =Profile!H30 -> 0 | G29: =Profile!C30 -> 0 | H29: =Profile!P30 -> 0 | I29: =Profile!Q30 -> 0 | J29: 0 | K29: 0 | L29: =Profile!AK30 -> 0 | M29: =Profile!AL28 -> 0 | O29: 0
B30: =Profile!A31 -> ofnZ;ka | D30: =Profile!F31 -> 3600 | E30: =Profile!G31 -> 3600 | F30: =Profile!H31 -> 1950 | G30: =Profile!C31 -> 3600 | H30: =Profile!P31 -> 1950 | I30: =Profile!Q31 -> 0 | J30: 1950 | K30: 0 | L30: =Profile!N31 -> 0 | M30: =Profile!AL31 -> 0 | O30: 0
B31: =Profile!A32 -> vU; izHkkj | D31: =Profile!F32 -> 0 | E31: =Profile!G32 -> 0 | F31: =Profile!H32 -> 0 | G31: =Profile!C32 -> 0 | H31: =Profile!P32 -> 0 | I31: =Profile!Q32 -> 0 | J31: 0 | K31: 0 | L31: =Profile!AK32 -> 0 | M31: =Profile!AL32 -> 0 | O31: 0
B32: =Profile!A33 -> foHkkxh;lsokvksa ij fof'k"V O;; | D32: =Profile!F33 -> 0 | E32: =Profile!G33 -> 0 | F32: =Profile!H33 -> 0 | G32: =Profile!C33 -> 0 | H32: =Profile!P33 -> 0 | I32: =Profile!Q33 -> 0 | J32: 0 | K32: 0 | L32: =Profile!AK33 -> 0 | M32: =Profile!AL33 -> 0 | O32: 0
B33: ;ksx | D33: =D32+D29+D28+D27+D26+D25+D30+D31 -> 3600 | E33: =E32+E29+E28+E27+E26+E25+E30+E31 -> 3600 | F33: 1950 | G33: 3600 | H33: 1950 | I33: 800 | J33: =J32+J29+J28+J27+J26+J25+J30+J31 -> 2750 | K33: =K32+K29+K28+K27+K26+K25+K30+K31 -> 0 | L33: =L32+L29+L28+L27+L26+L25+L30+L31 -> 800 | M33: =M32+M29+M28+M27+M26+M25+M30+M31 -> 0 | O33: =M33+N33 -> 0
B34: ;ksx egk;ksx | D34: =D33+D24 -> 5559111 | E34: 6336930 | F34: 7862760 | G34: 7376600 | H34: 5584352 | I34: 2559595 | J34: 8143947 | K34: 8053009 | L34: 10612604 | M34: 10903872 | O34: 10903872
H35: rS;kj drkZ %& | I35: =Profile!G6 -> lqfer fxjh
I36: =Profile!$I$6 -> 9414631519 | O36: =Profile!A3 -> ihbZbZvks 10tSM ,oa iz/kkukpk;Z
O37: =Profile!A4 -> jktdh; mPp ek/;fed fo|ky; | P37: =Profile!B4 -> 0
O38: =Profile!A5 -> 15tSM Jhxaxkuxj | P38: =Profile!B5 -> 0
O39: =Profile!$F$4 -> 2405
B42: Øekad | C42: in uke | F42: u;k@ØekssUu;u | H42: is cSaM | K42: xzsM is | M42: dqy in | O42: fooj.k
B43: 1 | C43: 2 | F43: 3 | H43: 4 | K43: 5 | M43: 6 | O43: 7
B44: 1
B45: 2
B46: 3
B47: 4
B48: 5
B49: 6
B50: 7
B53: vU; uohu vkbVe ds fy, izi=
B54: Øekad | C54: uohu vkbVe izdkj | E54: Ø; @ fdjk;k | G54: vkbVe dk uke | I54: la[;k | K54: vkorhZ O;; ekfld | M54: vukorhZ Hkkj | O54: dqy okf"kZd Hkkj | R54: vU; fooj.k
B55: 1
B56: 2
B57: 3
B58: 4
B59: 5
B60: 6
B62: izekf.kr fd;k tkrk gS fd mi;qZDr lwpuk dh esjs }kjk O;fDrxr :Ik ls tkap dj yh xbZ gS vksj bls lgh ik;k x;k gSA

Sheet rrr10
A1: izi= 10 | G1: ='rrr 09'!$J$1 -> 2022&2023 | J1: ctV gSM | K1: =Profile!$C$3 -> 2202-02-109-27-01
A2: vk; dk foLr`r ctV vuqeku forh; o"kZ ---------------------¼1vizSy ls 31ekpZ rd½ dk | K2: MhMhvks dksM | L2: =Profile!$G$35 -> 2405 | M2: =Profile!$K$36 -> LVsV Q.M
A3: dk;kZy; & | C3: =Profile!$D$36 -> 15tSM Jhxaxkuxj
A4: dk;kZy; v/;{k MhMhvks uke %& | D4: =Profile!$G$4 -> izHkkr 'kekZ | H4: =Profile!$I$4 -> 0 | J4: foHkkx dk uke %& | L4: =Profile!$G$2 -> f'k{kk foHkkx | N4: j lgL=ksa esa
A5: Øe l[;k | B5: ys[kk dk 'kh"kZ nh?kZ 'kh"kZ@ minh?kZ 'kh"kZ@ y?kq'kh"kZ@ mi'kh"kZ | C5: okLrfod O;; vkadM+s ¼xr iwoZ rhu o"kksZ ds½ | F5: ='rrr 09'!$G$6 -> vk; O;; ds vuqeku ckcr~ pkyw o"kZ 21&22 | G5: okLrfod vk; vkadM+s | J5: vxLr ls ekpZ rd dk laHkkfor vk; ¼pkyw o"kZ½ | K5: la'kksf/kr vuqeku ¼pkyw o"kZ½ 8$10 | L5: vk; O;; ds vuqeku ckcr ¼vkxkeh o"kZ½ | M5: o`f)¼$½ ;k deh¼&½
C6: ='rrr 09'!D7 -> 2018-19 | D6: ='rrr 09'!E7 -> 2019-20 | E6: ='rrr 09'!$F$7 -> 20&21 esa ekpZ2021 dk th-,-19 | G6: vxLr ls ekpZ rd ¼xr o"kZ½ | H6: viszy ls tqykbZ rd ¼pkyw o"kZ½ | I6: dkye 7 o 8 dk ;ksx | M6: 6 vkSj 11 esa | N6: 9 vkSj 11 esa | O6: 11 vkSj 12 esa
A7: 1 | B7: 2 | C7: 3 | D7: 4 | E7: 5 | F7: 6 | G7: 7 | H7: 8 | I7: 9 | J7: 10 | K7: 11 | L7: 12 | M7: 13 | N7: 14 | O7: 15
B8: f'k{k.k 'kqYd | C8: =Profile!F15 -> 0 | D8: =Profile!G15 -> 0 | E8: =Profile!H15 -> 0 | F8: =K8 -> 0 | G8: =Profile!I15 -> 0 | H8: =Profile!J15 -> 0 | I8: =G8+H8 -> 0 | J8: =Profile!K15 -> 0 | K8: =H8+J8 -> 0 | L8: =Profile!L15 -> 0
B9: Vh-lh- | C9: =Profile!F16 -> 85 | D9: =Profile!G16 -> 95 | E9: =Profile!H16 -> 50 | F9: =K9 -> 60 | G9: =Profile!I16 -> 0 | H9: =Profile!J16 -> 45 | I9: =G9+H9 -> 45 | J9: =Profile!K16 -> 15 | K9: =H9+J9 -> 60 | L9: =Profile!L16 -> 60
B10: izos'k 'kqYd | C10: =Profile!F17 -> 50 | D10: =Profile!G17 -> 70 | E10: =Profile!H17 -> 40 | F10: 40 | G10: =Profile!I17 -> 0 | H10: =Profile!J17 -> 30 | I10: 30 | J10: =Profile!K17 -> 10 | K10: 40 | L10: =Profile!L17 -> 50
B11: vuqi;ksxh lkeku ds fuLrkj.k ls vk; | C11: =Profile!F18 -> 0 | D11: =Profile!G18 -> 0 | E11: =Profile!H18 -> 0 | F11: 0 | G11: =Profile!I18 -> 0 | H11: =Profile!J18 -> 0 | I11: 0 | J11: =Profile!K18 -> 0 | K11: 0 | L11: =Profile!L18 -> 0
B12: fofo/k | C12: =Profile!F19 -> 0 | D12: =Profile!G19 -> 0 | E12: =Profile!H19 -> 0 | F12: 0 | G12: =Profile!I19 -> 0 | H12: =Profile!J19 -> 0 | I12: 0 | J12: =Profile!K19 -> 0 | K12: 0 | L12: =Profile!L19 -> 0
B13: vU; | C13: =Profile!F20 -> 0 | D13: =Profile!G20 -> 0 | E13: =Profile!H20 -> 5 | F13: 0 | G13: =Profile!I20 -> 0 | H13: =Profile!J20 -> 0 | I13: 0 | J13: =Profile!K20 -> 0 | K13: 0 | L13: =Profile!L20 -> 0
B14: ;ksx | C14: =C13+C10+C9+C8+C11+C12 -> 135 | D14: =D13+D10+D9+D8+D11+D12 -> 165 | E14: 95 | F14: =F13+F10+F9+F8+F11+F12 -> 100 | G14: =G13+G10+G9+G8+G11+G12 -> 0 | H14: =H13+H10+H9+H8+H11+H12 -> 75 | I14: =I13+I10+I9+I8+I11+I12 -> 75 | J14: =J13+J10+J9+J8+J11+J12 -> 25 | K14: =K13+K10+K9+K8+K11+K12 -> 100 | L14: =L13+L10+L9+L8+L11+L12 -> 110
L18: =Profile!A3 -> ihbZbZvks 10tSM ,oa iz/kkukpk;Z
L19: =Profile!A4 -> jktdh; mPp ek/;fed fo|ky;
G20: rS;kj drkZ %& | H20: =Profile!G6 -> lqfer fxjh | L20: =Profile!A5 -> 15tSM Jhxaxkuxj
H21: =Profile!$I$6 -> 9414631519 | L21: =Profile!$F$4 -> 2405

Sheet P1
A1: =Profile!$A$36 -> dk;kZy; %& | C1: =Profile!$D$36 -> 15tSM Jhxaxkuxj
A2: izi= 1 | F2: ctV gSM | G2: =Profile!$C$3 -> 2202-02-109-27-01
A3: dk;kZy; v/;{k MhMhvks uke %& | D3: =Profile!$G$4 -> izHkkr 'kekZ | F3: =Profile!$I$4 -> 0 | H3: ='rrr 08'!$P$2 -> 2022&2023
A4: ys[kk en | C4: 01 laosru dk x.ku @ ekax izi= | F4: =Profile!$K$36 -> LVsV Q.M | H4: jkf'k yk[kksa esa
A5: Ø-la- | B5: vkWfQl vkbZ-Mh- | C5: fo|ky; dk uke | D5: forh; o"kZ 2021&22 esa laosru esa vkaCkfVr jkf'k | E5: 07@21 rd dk okLrfod O;; | F5: 08@21 ls 03@22 rd gksus okyk vuqekfur O;; | G5: forh; o"kZ esa gksus okyk dqy O;; | H5: o"kZ 2021&22 vfrfjDr ds fy, vko';drk
G6: ;ksx dkWye ¼5$6½ | H6: ;ksx dkWye ¼4&7½
A7: 1 | B7: 2 | C7: 3 | D7: 4 | E7: 5 | F7: 6 | G7: 7 | H7: 8
A8: 1 | B8: =Profile!$G$35 -> 2405 | C8: =Profile!$D$36 -> 15tSM Jhxaxkuxj | D8: ='rrr 09'!$G$20 -> 7373000 | E8: ='rrr 09'!$I$20 -> 2558795 | F8: ='rrr 09'!$K$20 -> 8053009 | G8: =E8+F8 -> 10611804 | H8: =D8-G8 -> -3238804
E10: rS;kj drkZ %& | F10: =Profile!$G$6 -> lqfer fxjh
F11: =Profile!$I$6 -> 9414631519 | G11: =Profile!A3 -> ihbZbZvks 10tSM ,oa iz/kkukpk;Z
G12: =Profile!A4 -> jktdh; mPp ek/;fed fo|ky; | H12: =Profile!B4 -> 0
G13: =Profile!A5 -> 15tSM Jhxaxkuxj | H13: =Profile!B5 -> 0
G14: =Profile!$F$4 -> 2405

Sheet P3
A1: =Profile!A36 -> dk;kZy; %& | D1: =Profile!D36 -> 15tSM Jhxaxkuxj | K1: ='rrr 08'!$P$2 -> 2022&2023
A2: ¼v½ fu;fer Lohd`r inks dk fooj.k | I2: ctV gSM | J2: =Profile!$C$3 -> 2202-02-109-27-01
A3: ys[kk dk 'kh"kZ nh?kZ 'kh"kZ@ minh?kZ 'kh"kZ@ y?kq'kh"kZ@ mi'kh"kZ | B3: ukWuIyku @ Iyku @ lh-,l-,l- | C3: in uke | D3: ysoy@ xzsM is | E3: Lohd`r inksa dh la[;k ¼fnukad 01-04-2021 dh fLFkfr½ | F3: pkyw o"kZ 2021&2022 esa Lohd`r u;s inksa dh la[;k | G3: pkyw o"kZ 2021&2022 esa lekIr fd;s x;s inksa dh la[;k | H3: orZeku inkas dh la[;k ¼dkWye la[;k 5+6-7½ | I3: fu;fer dk;Zjr | K3: 31-08-2021 dks fjDr inksa dh la[;k | L3: fnukad ftlls in fjDr gS
I4: 1tuojh 2004 ls iwoZ fu;qfDr | J4: 1tuojh 2004 ds Ik'pkr fu;qfDr
A5: 1 | B5: 2 | C5: 3 | D5: 4 | E5: 5 | F5: 6 | G5: 7 | H5: 8 | I5: 9 | J5: 10 | K5: 11 | L5: 12
A6: =Profile!A44 -> jktif=r | B6: =Profile!$K$36 -> LVsV Q.M | C6: =Profile!G44 -> iz/kkukpk;Z | D6: =Profile!I44 -> 16 | E6: 0 | F6: 0 | G6: 0 | H6: =E6+F6-G6 -> 0
A7: =Profile!A45 -> jktif=r | B7: =Profile!$K$36 -> LVsV Q.M | C7: =Profile!G45 -> O;k[;krk | D7: =Profile!I45 -> 16 | E7: 0 | F7: 0 | G7: 0 | H7: =E7+F7-G7 -> 0
A8: =Profile!A46 -> jktif=r | B8: =Profile!$K$36 -> LVsV Q.M | C8: =Profile!G46 -> O;k[;krk | D8: =Profile!I46 -> 16 | E8: 0 | F8: 0 | G8: 0 | H8: 0
A9: =Profile!A47 -> jktif=r | B9: =Profile!$K$36 -> LVsV Q.M | C9: =Profile!G47 -> O;k[;krk | D9: =Profile!I47 -> 16 | E9: 0 | F9: 0 | G9: 0 | H9: 0
A10: =Profile!A48 -> jktif=r | B10: =Profile!$K$36 -> LVsV Q.M | C10: =Profile!G48 -> O;k[;krk | D10: =Profile!I48 -> 16 | E10: 0 | F10: 0 | G10: 0 | H10: 0
A11: =Profile!A49 -> jktif=r | B11: =Profile!$K$36 -> LVsV Q.M | C11: =Profile!G49 -> O;k[;krk | D11: =Profile!I49 -> 6 | E11: 0 | F11: 0 | G11: 0 | H11: 0
A12: =Profile!A50 -> jktif=r | B12: =Profile!$K$36 -> LVsV Q.M | C12: =Profile!G50 -> O;k[;krk | D12: =Profile!I50 -> 7 | E12: 0 | F12: 0 | G12: 0 | H12: 0
A13: =Profile!A66 -> vjktif=r | B13: =Profile!$K$36 -> LVsV Q.M | C13: =Profile!G66 -> ofj"B v/;kid | D13: =Profile!I66 -> 11 | E13: 1 | F13: 0 | G13: 0 | H13: 1 | J13: 1
A14: =Profile!A67 -> vjktif=r | B14: =Profile!$K$36 -> LVsV Q.M | C14: =Profile!G67 -> ofj"B v/;kid | D14: =Profile!I67 -> 11 | E14: 1 | F14: 0 | G14: 0 | H14: 1 | J14: 1
A15: =Profile!A68 -> vjktif=r | B15: =Profile!$K$36 -> LVsV Q.M | C15: =Profile!G68 -> ofj"B v/;kid | D15: =Profile!I68 -> 11 | E15: 0 | F15: 0 | G15: 0 | H15: 0
A16: =Profile!A69 -> vjktif=r | B16: =Profile!$K$36 -> LVsV Q.M | C16: =Profile!G69 -> ofj"B v/;kid | D16: =Profile!I69 -> 11 | E16: 0 | F16: 0 | G16: 0 | H16: 0
A17: =Profile!A70 -> vjktif=r | B17: =Profile!$K$36 -> LVsV Q.M | C17: =Profile!G70 -> ofj"B v/;kid | D17: =Profile!I70 -> 11 | E17: 0 | F17: 0 | G17: 0 | H17: 0
A18: =Profile!A71 -> vjktif=r | B18: =Profile!$K$36 -> LVsV Q.M | C18: =Profile!G71 -> ofj"B v/;kid | D18: =Profile!I71 -> 11 | E18: 0 | F18: 0 | G18: 0 | H18: 0
A19: =Profile!A88 -> vjktif=r | B19: =Profile!$K$36 -> LVsV Q.M | C19: =Profile!G88 -> v/;kid&2 | D19: =Profile!I88 -> 23 | E19: 1 | F19: 0 | G19: 0 | H19: 1 | K19: 1
A20: =Profile!A89 -> vjktif=r | B20: =Profile!$K$36 -> LVsV Q.M | C20: =Profile!G89 -> v/;kid&2 | D20: =Profile!I89 -> 24 | E20: 1 | F20: 0 | G20: 0 | H20: 1 | J20: 1
A21: =Profile!A90 -> vjktif=r | B21: =Profile!$K$36 -> LVsV Q.M | C21: =Profile!G90 -> v/;kid&2 | D21: =Profile!I90 -> 25 | E21: 1 | F21: 0 | G21: 0 | H21: 1 | J21: 1
A22: =Profile!A91 -> vjktif=r | B22: =Profile!$K$36 -> LVsV Q.M | C22: =Profile!G91 -> v/;kid&1 | D22: =Profile!I91 -> 26 | E22: 1 | F22: 0 | G22: 0 | H22: 1 | I22: 1
A23: =Profile!A92 -> vjktif=r | B23: =Profile!$K$36 -> LVsV Q.M | C23: =Profile!G92 -> v/;kid&1 | D23: =Profile!I92 -> 27 | E23: 1 | F23: 0 | G23: 0 | H23: 1 | I23: 1
A24: =Profile!A93 -> vjktif=r | B24: =Profile!$K$36 -> LVsV Q.M | C24: =Profile!G93 -> v/;kid&1 | D24: =Profile!I93 -> 28 | E24: 0 | F24: 0 | G24: 0 | H24: 0
A25: =Profile!A94 -> vjktif=r | B25: =Profile!$K$36 -> LVsV Q.M | C25: =Profile!G94 -> 'kk-f'k{kd | D25: =Profile!I94 -> 29 | E25: 1 | F25: 0 | G25: 0 | H25: 1 | I25: 1
A26: =Profile!A95 -> vjktif=r | B26: =Profile!$K$36 -> LVsV Q.M | C26: =Profile!G95 -> dk;kZy; lgk;d | D26: =Profile!I95 -> 30 | E26: 0 | F26: 0 | G26: 0 | H26: 0
A27: =Profile!A96 -> vjktif=r | B27: =Profile!$K$36 -> LVsV Q.M | C27: =Profile!G96 -> ofj"B fyfid | D27: =Profile!I96 -> 31 | E27: 1 | F27: 0 | G27: 0 | H27: =E27+F27-G27 -> 1 | J27: 1
A28: =Profile!A97 -> vjktif=r | B28: =Profile!$K$36 -> LVsV Q.M | C28: =Profile!G97 -> dfu"B fyfid | D28: =Profile!I97 -> 32 | E28: 0 | F28: 0 | G28: 0 | H28: =E28+F28-G28 -> 0
A29: =Profile!A98 -> vjktif=r | B29: =Profile!$K$36 -> LVsV Q.M | C29: =Profile!G98 -> lgk;d deZpkjh | D29: =Profile!I98 -> 33 | E29: 1 | F29: 0 | G29: 0 | H29: 1 | I29: 1
A30: =Profile!A99 -> vjktif=r | B30: =Profile!$K$36 -> LVsV Q.M | C30: =Profile!G99 -> lgk;d deZpkjh | D30: =Profile!I99 -> 34 | E30: 1 | F30: 0 | G30: 0 | H30: 1 | K30: 1
A31: =Profile!A100 -> vjktif=r | B31: =Profile!$K$36 -> LVsV Q.M | C31: =Profile!G100 -> lgk;d deZpkjh | D31: =Profile!I100 -> 35 | E31: 0 | F31: 0 | G31: 0 | H31: 0 | I31: 0
C33: dqy | E33: =SUM(E6:E32) -> 11 | F33: =SUM(F6:F32) -> 0 | G33: =SUM(G6:G32) -> 0 | H33: =SUM(H6:H32) -> 11 | I33: =SUM(I13:I32) -> 4 | J33: =SUM(J6:J32) -> 5 | K33: =SUM(K6:K32) -> 2
J35: =Profile!A3 -> ihbZbZvks 10tSM ,oa iz/kkukpk;Z
J36: =Profile!A4 -> jktdh; mPp ek/;fed fo|ky; | K36: =Profile!B4 -> 0
J37: =Profile!A5 -> 15tSM Jhxaxkuxj | K37: =Profile!B5 -> 0
J38: ='P1'!$G$14 -> 2405

Sheet L-1-2
B1: =Profile!A36 -> dk;kZy; %& | C1: =Profile!D36 -> 15tSM Jhxaxkuxj
A2: v/;kid ysoy&1 o ysoy&2 Lohd`r] dk;Zjr o fjDr inks dk fooj.k | F2: 2202-02-109-27-01
A3: en 2202 ukWu Iyku | C3: o"kZ | D3: =Profile!O36 -> RE 2021-2022 | E3: o vkxkeh o"kZ | G3: =Profile!N35 -> BE 2022-2023
A4: ys[kk 'kh"kZd ¼foLr`r 'kh"kZ½ | B4: en | C4: in uke | D4: fo"k; | E4: Lohd`r | F4: dk;Zjr | G4: fjDr | H4: Lohd`r ;ksx
A5: vjktif=r | B5: 2202-02-109-27-01 | C5: v/;kid ysoy&1 | D5: & | E5: 2 | F5: 2 | G5: =E5-F5 -> 0 | H5: =E5+E7+E6 -> 3
A6: vjktif=r | B6: 2202-02-109-01-00 | C6: v/;kid ysoy&1 | D6: & | E6: 1 | F6: 1 | G6: =E6-F6 -> 0
A7: vjktif=r | C7: v/;kid ysoy&1 | D7: & | F7: 0 | G7: =E7-F7 -> 0
A8: vjktif=r | B8: 2202-02-109-27-01 | C8: v/;kid ysoy&2 | D8: vaxzsth | E8: 1 | F8: 0 | G8: =E8-F8 -> 1 | H8: =E8+E9+E10+E11+E12+E13 -> 3
A9: vjktif=r | B9: 2202-02-109-27-01 | D9: fgUnh | E9: 1 | F9: 1 | G9: 0
A10: vjktif=r | D10: xf.kr@foKku | E10: 0 | F10: 0 | G10: 0
A11: vjktif=r | B11: 2202-02-109-27-01 | D11: lkekftd foKku | E11: 1 | F11: 1 | G11: 0
A12: vjktif=r | D12: iatkch | E12: 0 | F12: 0 | G12: 0
A13: vjktif=r | D13: laLd`r | E13: 0 | F13: 0 | G13: 0
A14: dqy | E14: =E5+E7+E8+E9+E10+E11+E12+E13+E6 -> 6 | F14: =F5+F7+F8+F9+F10+F11+F12+F13+F6 -> 5 | G14: 1 | H14: 6
B16: =Profile!C3 -> 2202-02-109-27-01 | F16: ='P3'!J35 -> ihbZbZvks 10tSM ,oa iz/kkukpk;Z
F17: ='P3'!J36 -> jktdh; mPp ek/;fed fo|ky; | G17: ='P3'!K36 -> 0 | H17: ='P3'!L36 -> 0
F18: ='P3'!J37 -> 15tSM Jhxaxkuxj | G18: ='P3'!K37 -> 0 | H18: ='P3'!L37 -> 0

Sheet retierment
A1: =Profile!A36 -> dk;kZy; %& | D1: =Profile!D36 -> 15tSM Jhxaxkuxj
A2: izi= 12 , | G2: ctV gSM | H2: =Profile!$C$3 -> 2202-02-109-27-01
A3: osru J`a[kyk 1 ls 6 rd lsokfuo`r gksus okys dkfeZd dk fooj.k
A4: en 2202 ukWu Iyku | D4: o"kZ | E4: =Profile!O36 -> RE 2021-2022 | F4: o vkxkeh o"kZ | H4: =Profile!M36 -> 2022&2023
A5: Ø-la | B5: ctV en | C5: deZpkjh dk uke | D5: osru Ja`[kyk | E5: ossru ysoy | F5: in uke | G5: lsokfuo`r fnukad | H5: lsokfuo`r deZpkjh dh lsokfuo`fr ds le; ns; mikftZr vodk'k | I5: dkfeZd dk lsokfuo`fr ds le; ewy osru | J5: lsokfuo`r deZpkjh dh jde
A6: 1 | B6: ukWu Iyku | J6: =H6*I6/30 -> 0
A7: 2 | B7: ukWu Iyku ckfydk | J7: =H7*I7/30 -> 0
A8: 3 | B8: ukWu Iyku | J8: 0
A9: 4 | B9: ukWu Iyku | J9: 0
C11: =Profile!C3 -> 2202-02-109-27-01 | H11: =Profile!A3 -> ihbZbZvks 10tSM ,oa iz/kkukpk;Z
H12: =Profile!A4 -> jktdh; mPp ek/;fed fo|ky; | I12: =Profile!B4 -> 0
H13: =Profile!A5 -> 15tSM Jhxaxkuxj | I13: =Profile!B5 -> 0
H14: =Profile!$F$4 -> 2405

Sheet FIX PAY
C1: uke dk;kZy;& | D1: =Profile!$C$1 -> 15tSM Jhxaxkuxj
E2: lafonk osru ij fu;qä dkfeZdksa dk fooj.k | G2: vkWfQl vkbZMh& | H2: =Profile!$F$4 -> 2405
C3: ys[kk 'kh"kZd& | D3: =Profile!C3 -> 2202-02-109-27-01
E4: laosru | G4: ='rrr 08'!$P$2 -> 2022&2023
C5: ekax la[;k | D5: =Profile!$C$11 -> 24 | F5: Ldhe dk uke | G5: =Profile!$C$10 -> LVsV Q.M
B7: Ø-la- | C7: uke dkfeZd | D7: in uke | E7: tUe frfFk | F7: fu;qfä frfFk | G7: ekfld ekuns; | H7: 12 ekg dk ekuns; | I7: vkxkeh o"kZ es 12 ekg dk ekuns;
B8: 1 | C8: 2 | D8: 3 | E8: 4 | F8: 5 | G8: 6 | H8: 7 | I8: 8
B9: =Profile!C122 -> 1 | C9: =Profile!D122 -> 0 | D9: =Profile!E122 -> 0 | E9: =Profile!F122 -> 00:00:00 | F9: =Profile!G122 -> 00:00:00 | G9: =Profile!H122 -> 0 | H9: =Profile!I122 -> 0 | I9: =Profile!J122 -> 0
B10: =Profile!C123 -> 2 | C10: =Profile!D123 ->  | D10: =Profile!E123 ->  | E10: =Profile!F123 ->  | F10: =Profile!G123 ->  | G10: =Profile!H123 -> 0 | H10: =Profile!I123 -> 0 | I10: =Profile!J123 -> 0
B11: =Profile!C124 -> 3 | C11: =Profile!D124 ->  | D11: =Profile!E124 ->  | E11: =Profile!F124 ->  | F11: =Profile!G124 ->  | G11: =Profile!H124 -> 0 | H11: =Profile!I124 -> 0 | I11: =Profile!J124 -> 0
B12: =Profile!C125 -> 4 | C12: =Profile!D125 ->  | D12: =Profile!E125 ->  | E12: =Profile!F125 ->  | F12: =Profile!G125 ->  | G12: =Profile!H125 -> 0 | H12: =Profile!I125 -> 0 | I12: =Profile!J125 -> 0
B13: =Profile!C126 -> 5 | C13: =Profile!D126 ->  | D13: =Profile!E126 ->  | E13: =Profile!F126 ->  | F13: =Profile!G126 ->  | G13: =Profile!H126 -> 0 | H13: =Profile!I126 -> 0 | I13: =Profile!J126 -> 0
B14: =Profile!C127 -> 6 | C14: =Profile!D127 ->  | D14: =Profile!E127 ->  | E14: =Profile!F127 ->  | F14: =Profile!G127 ->  | G14: =Profile!H127 -> 0 | H14: =Profile!I127 -> 0 | I14: =Profile!J127 -> 0
B15: =Profile!C128 -> 7 | C15: =Profile!D128 ->  | D15: =Profile!E128 ->  | E15: =Profile!F128 ->  | F15: =Profile!G128 ->  | G15: =Profile!H128 -> 0 | H15: =Profile!I128 -> 0 | I15: =Profile!J128 -> 0
B16: =Profile!C129 -> 8 | C16: =Profile!D129 ->  | D16: =Profile!E129 ->  | E16: =Profile!F129 ->  | F16: =Profile!G129 -> 00:00:00 | G16: =Profile!H129 -> 0 | H16: =Profile!I129 -> 0 | I16: =Profile!J129 -> 0
B17: =Profile!C130 -> 9 | C17: =Profile!D130 ->  | D17: =Profile!E130 ->  | E17: =Profile!F130 ->  | F17: =Profile!G130 ->  | G17: =Profile!H130 -> 0 | H17: =Profile!I130 -> 0 | I17: =Profile!J130 -> 0
B18: =Profile!C131 -> 10 | C18: =Profile!D131 ->  | D18: =Profile!E131 ->  | E18: =Profile!F131 ->  | F18: =Profile!G131 ->  | G18: =Profile!H131 -> 0 | H18: =Profile!I131 -> 0 | I18: =Profile!J131 -> 0
D19: =Profile!E132 -> TOTAL | G19: =Profile!H132 -> 0 | H19: =Profile!I132 -> 0 | I19: =Profile!J132 -> 0
F22: =Profile!A3 -> ihbZbZvks 10tSM ,oa iz/kkukpk;Z
B23: rS;kj drkZ %& | C23: =Profile!G6 -> lqfer fxjh | F23: =Profile!A4 -> jktdh; mPp ek/;fed fo|ky;
F24: =Profile!A5 -> 15tSM Jhxaxkuxj
F25: =Profile!$F$4 -> 2405

Sheet CHALAN
G1: pkyku fooj.k
A2: fo|ky; dk uke & | D2: jktdh; mPp ek/;fed fo|ky; pkSxkbZa Vksad
A3: ys[kk 'kh"kZd& | C3: 2202 | D3: lkekU; f'k{kk | G3: vkWfQl vkbZMh& | H3: 27306
C4: 2 | D4: ek/;fed f'k{kk
C5: 109 | D5: jktdh; mPp ek/;fed fo|ky;
C6: 27 | D6: yM+dksa ds fo|ky;
C7: 1 | D7: yM+dksa ds fo|ky;
A9: ekax la[;k | C9: 24 | G9: Ldhe dk uke | H9: LVsV Q.M
A11: Ø- la- | B11: pkyu uEcj o fnukad | C11: vizsy 20 ls ekpZ 21 | G11: pkyu uEcj o fnukad | H11: vxLr 20 ls ekpZ 21 | L11: pkyu uEcj o fnukad | M11: vizsy 21 ls tqykbZ 21
C12: f'k{k.k Qhl ,oa vU; Qhlsa | D12: vuqi;ksxh lkekuksa ls vk; | E12: vf/kd Hkqxrku ls olwyh | F12: fofo/k | H12: f'k{k.k Qhl ,oa vU; Qhlsa | I12: vuqi;ksxh lkekuksa ls vk; | J12: vf/kd Hkqxrku ls olwyh | K12: fofo/k | M12: f'k{k.k Qhl ,oa vU; Qhlsa | N12: vuqi;ksxh lkekuksa ls vk; | O12: vf/kd Hkqxrku ls olwyh | P12: fofo/k
C13: 10 | D13: 20 | E13: 30 | F13: 40 | H13: 50 | I13: 60 | J13: 70 | K13: 80 | M13: 90 | N13: 100 | O13: 110 | P13: 120
B28: TOTAL | C28: 10 | D28: 20 | E28: 30 | F28: 40 | H28: 50 | I28: 60 | J28: 70 | K28: 80 | M28: 90 | N28: 100 | O28: 110 | P28: 120
M30: =Profile!A3 -> ihbZbZvks 10tSM ,oa iz/kkukpk;Z
M31: =Profile!A4 -> jktdh; mPp ek/;fed fo|ky;
M32: =Profile!A5 -> 15tSM Jhxaxkuxj
M33: =Profile!$F$4 -> 2405

Sheet bank ac SCHOOL
A1: ¼c½ cSad [kkrks fLFkfr dk fooj.k
A2: ='P3'!$D$1 -> 15tSM Jhxaxkuxj | F2: foHkkx dk uke %& f'k{kk foHkkx
A4: cSd rFkk 'kk[kk dk uke ¼bZ,Qlh dksM½ | B4: cSd [kkrs dk uke e; [kkrk la[;k | C4: in uke ftlds uke ls [kkrk gS | D4: foHkkxh; @ xSj foHkkxh; | E4: 01-04-2021 dks vo'ks"k jkf'k | G4: 2021&2022 | J4: 31-08-2021 dks 'ks"k jkf'k ¼5$6&7½
G5: gLrkUrfjr jkf'k | H5: fnukad 31 vxLr rd O;; jkf'k
A6: 1 | B6: 2 | C6: 3 | D6: 4 | E6: 5 | G6: 6 | H6: 7 | J6: 8
A7: vkS-ch-lh 15tSM vksvkjchlh01100506 | B7: RAJKIYE MADHYAMIK VIDHALYA 15Z 0506204 0000210 | C7: iz/kkukpk;Z | D7: foHkkxh; fo|kFkhZ dks"k | E7: cash | F7: 0 | G7: 205 | H7: 0 | J7: =F7+G7-H7 -> 205
E8: bank | F8: 2991.65 | G8: =11432-205 -> 11227 | H8: 1265 | J8: =F8+G8-H8 -> 12953.65
E9: F.D. | F9: 0 | G9: 0 | H9: 0 | J9: 0
E10: Total | F10: =F9+F8+F7 -> 2991.65 | G10: =G9+G8+G7 -> 11432 | H10: 1265 | I10: 0 | J10: 13158.65
A11: vkS-ch-lh 15tSM vksvkjchlh01100506 | B11: RA.MA.VIDYALA VKASH KOSH 0506204 0000080 | C11: iz/kkukpk;Z | D11: foHkkxh; fodkl dks"k | E11: cash | F11: 0 | G11: 0 | H11: 0 | J11: =F11+G11-H11 -> 0
E12: bank | F12: 26604 | G12: 15234 | H12: 9990 | J12: 31848
E13: F.D. | F13: 0 | G13: 0 | H13: 0 | J13: 0
E14: Total | F14: =F13+F12+F11 -> 26604 | G14: =G13+G12+G11 -> 15234 | H14: =H13+H12+H11 -> 9990 | I14: =I13+I12+I11 -> 0 | J14: 31848
G17: =Profile!A3 -> ihbZbZvks 10tSM ,oa iz/kkukpk;Z
G18: =Profile!A4 -> jktdh; mPp ek/;fed fo|ky; | H18: =Profile!B4 -> 0
G19: =Profile!A5 -> 15tSM Jhxaxkuxj | H19: =Profile!B5 -> 0
G20: =Profile!$F$4 -> 2405

Sheet R01
A1: ='P3'!$D$1 -> 15tSM Jhxaxkuxj
A2: izi=
A3: =Profile!$A$35 -> o"kZ 2022&2023 ds fy, jsUt ds vuqlkj laosru dh jkf'k
A4: Ø-la- | B4: in dk uke | C4: ,u-ih-,l-] lkekU;] fjDr | D4: xzsM is | E4: ,d ekg dh jkf'k | F4: 12 ekg dh jkf'k | G4: 3 izfr'kr osru o`f) | H4: x.kuk osru o`f)
A5: 1 | B5: =Profile!G44 -> iz/kkukpk;Z | C5: lkekU; | D5: =Profile!I44 -> 16 | E5: =Profile!J44 -> 11000 | F5: =E5*12 -> 132000 | G5: =Profile!P44 -> 300 | H5: =ROUNDUP((E5)*(3%),0) -> 330
A6: 2 | B6: =Profile!G45 -> O;k[;krk | C6: lkekU; | D6: =Profile!I45 -> 16 | E6: =Profile!J45 -> 11000 | F6: =E6*12 -> 132000 | G6: =Profile!P45 -> 300 | H6: =ROUNDUP((E6)*(3%),0) -> 330
A7: 3 | B7: =Profile!G46 -> O;k[;krk | C7: lkekU; | D7: =Profile!I46 -> 16 | E7: =Profile!J46 -> 11000 | F7: 132000 | G7: =Profile!P46 -> 300 | H7: 330
A8: 4 | B8: =Profile!G47 -> O;k[;krk | C8: ,uih,l | D8: =Profile!I47 -> 16 | E8: =Profile!J47 -> 11000 | F8: 132000 | G8: =Profile!P47 -> 300 | H8: 330
A9: 5 | B9: =Profile!G48 -> O;k[;krk | D9: =Profile!I48 -> 16 | E9: =Profile!J48 -> 11000 | F9: 132000 | G9: =Profile!P48 -> 300 | H9: 330
A10: 6 | B10: =Profile!G49 -> O;k[;krk | D10: =Profile!I49 -> 6 | E10: =Profile!J49 -> 11000 | F10: 132000 | G10: =Profile!P49 -> 300 | H10: 330
A11: 7 | B11: =Profile!G50 -> O;k[;krk | D11: =Profile!I50 -> 7 | E11: =Profile!J50 -> 11000 | F11: 132000 | G11: =Profile!P50 -> 300 | H11: 330
A12: 1 | B12: =Profile!G66 -> ofj"B v/;kid | C12: lkekU; | D12: =Profile!I66 -> 11 | E12: =Profile!J66 -> 11000 | F12: 132000 | G12: =Profile!P66 -> 300 | H12: 330
A13: 2 | B13: =Profile!G67 -> ofj"B v/;kid | C13: ,u-ih-,l- fQDl | D13: =Profile!I67 -> 11 | E13: =Profile!J67 -> 11000 | F13: 132000 | G13: =Profile!P67 -> 300 | H13: 330
A14: 3 | B14: =Profile!G68 -> ofj"B v/;kid | C14: fjDr | D14: =Profile!I68 -> 11 | E14: =Profile!J68 -> 11000 | F14: 132000 | G14: =Profile!P68 -> 300 | H14: 330
A15: 4 | B15: =Profile!G69 -> ofj"B v/;kid | C15: fjDr | D15: =Profile!I69 -> 11 | E15: =Profile!J69 -> 11000 | F15: =E15*12 -> 132000 | G15: =Profile!P69 -> 300
A16: 12 | B16: =Profile!G70 -> ofj"B v/;kid | D16: =Profile!I70 -> 11 | E16: =Profile!J70 -> 11000 | F16: 132000 | G16: =Profile!P70 -> 300
A17: 13 | B17: =Profile!G71 -> ofj"B v/;kid | D17: =Profile!I71 -> 11 | E17: =Profile!J71 -> 11000 | F17: 132000 | G17: =Profile!P71 -> 300
A18: 5 | B18: =Profile!G88 -> v/;kid&2 | C18: lkekU; | D18: =Profile!I88 -> 23 | E18: =Profile!J88 -> 11000 | F18: 132000 | G18: =Profile!P88 -> 300
A19: 6 | B19: =Profile!G89 -> v/;kid&2 | C19: ,u-ih-,l- | D19: =Profile!I89 -> 24 | E19: =Profile!J89 -> 11000 | F19: =E19*12 -> 132000 | G19: =Profile!P89 -> 300
A20: 7 | B20: =Profile!G90 -> v/;kid&2 | C20: fjDr | D20: =Profile!I90 -> 25 | E20: =Profile!J90 -> 11000 | F20: 132000 | G20: =Profile!P90 -> 300
A21: 8 | B21: =Profile!G91 -> v/;kid&1 | C21: lkekU; | D21: =Profile!I91 -> 26 | E21: =Profile!J91 -> 11000 | F21: 132000 | G21: =Profile!P91 -> 300
A22: 9 | B22: =Profile!G92 -> v/;kid&1 | C22: ,u-ih-,l- | D22: =Profile!I92 -> 27 | E22: =Profile!J92 -> 11000 | F22: 132000 | G22: =Profile!P92 -> 300
A23: 19 | B23: =Profile!G93 -> v/;kid&1 | D23: =Profile!I93 -> 28 | E23: =Profile!J93 -> 11000 | F23: 132000 | G23: =Profile!P93 -> 300 | H23: 330
A24: 10 | B24: =Profile!G94 -> 'kk-f'k{kd | C24: lkekU; | D24: =Profile!I94 -> 29 | E24: =Profile!J94 -> 11000 | F24: 132000 | G24: =Profile!P94 -> 300 | H24: 330
A25: 21 | B25: =Profile!G95 -> dk;kZy; lgk;d | D25: =Profile!I95 -> 30 | E25: =Profile!J95 -> 11000 | F25: 132000 | G25: =Profile!P95 -> 300 | H25: 330
A26: 11 | B26: =Profile!G96 -> ofj"B fyfid | C26: ,u-ih-,l- | D26: =Profile!I96 -> 31 | E26: =Profile!J96 -> 11000 | F26: 132000 | G26: =Profile!P96 -> 300
A27: 12 | B27: =Profile!G97 -> dfu"B fyfid | C27: ,u-ih-,l- | D27: =Profile!I97 -> 32 | E27: =Profile!J97 -> 11000 | F27: 132000 | G27: =Profile!P97 -> 300
A28: 13 | B28: =Profile!G98 -> lgk;d deZpkjh | C28: lkekU; | D28: =Profile!I98 -> 33 | E28: =Profile!J98 -> 11000 | F28: 132000 | G28: =Profile!P98 -> 300
A29: 14 | B29: =Profile!G99 -> lgk;d deZpkjh | C29: ,u-ih-,l- | D29: =Profile!I99 -> 34 | E29: =Profile!J99 -> 11000 | F29: 132000 | G29: =Profile!P99 -> 300
B30: =Profile!G100 -> lgk;d deZpkjh | D30: =Profile!I100 -> 35 | E30: =Profile!J100 -> 11000 | F30: 132000 | G30: =Profile!P100 -> 300
C31: dqy | E31: =SUM(E5:E30) -> 286000 | F31: =SUM(F5:F30) -> 3432000 | G31: =SUM(G5:G30) -> 7800
C33: lkekU; | E33: =E12+E18+E21+E24+E28 -> 55000 | F33: 660000 | G33: =G12+G18+G21+G24+G28 -> 1500
B34: lk0osru o`f) 8 ekg | E34: =G33*8 -> 12000
C35: ,uih,l | E35: =E13+E19+E22+E26+E27+E29 -> 66000 | F35: 792000 | G35: =G13+G19+G22+G26+G27+G29 -> 1800
B36: lk0osru o`f) 8 ekg ,uih,l | E36: =G35*8 -> 14400
C37: dqy | E37: =E33+E35 -> 121000 | F37: 1452000 | G37: =G33+G35 -> 3300
B38: lk0osru o`f) 8 ekg dqy | E38: =E36+E34 -> 26400
C40: egk;ksx | E40: =F37+E38 -> 1478400

Sheet Sheet1 (hidden)
A1: dk;kZy;& | C1: jktdh; mPp ek/;fed fo|ky; pkSxkbZa Vksad
A2: eksgj& | C2: Budget Estemate
A3: ihZbZbZvks 10tSM ,oa iz/kkukpk;Z | F3: vkWfQl vkbZMh | G3: uke MhMhvks | I3: uEcj
A4: jktdh; mPp ek/;fed fo|ky; | F4: 2405 | G4: izHkkr 'kekZ | I4: 9414318727
A5: 15tSM Jhxaxkuxj | F5: rS;kj drkZ | G5: lqfer fxjh | I5: 9414631519
A6: ctV en eq[; 'kh"kZ | C6: 2202 | D6: lkekU; f'k{kk
C7: 2 | D7: ek/;fed f'k{kk
C8: 109 | D8: jktdh; mPp ek/;fed fo|ky;
C9: 27 | D9: yM+dksa ds fo|ky;
C10: 1 | D10: yM+dksa ds fo|ky;
A13: Ldhe dk uke | F13: LVsV Q.M
A14: ekax la[;k | C14: 24 | H14: Arear Month | I14: 8
A15: ctV Lohd`fr esa fo|ky; dh Ø-la- | F15: 14 | G15: egakbZ HkÙk nj | H15: 17 | I15: DA Arr. | J15: 0 | K15: HRA | L15: 8
A16: xr rhu o"ksksZa ds vk; ,oa O;; dk fooj.k | B16: gsM | F16: 2017-18 | G16: 2018-19 | H16: 2019-20 | I16: 08/19 to 03/20 | J16: 04/20 to 07/20 | K16: la'kksf/kr vuqeku 2020&21 | L16: vk; vuqeku 2021&2022
A17: vk;
A18: f'k{k.k Qhl o vU; Qhl | B18: 0202&02 | C18: 102 | D18: 1 | E18: 0 | F18: 110 | G18: 200 | H18: 210 | I18: 150 | J18: 90 | K18: 220 | L18: 230
A19: ikB~; iqLrdksa ls vk; | B19: 0202&02 | C19: 102 | D19: 2
A20: fofo/k | B20: 0202&02 | C20: 102 | D20: 3 | E20: 1
A21: vf/kd Hkqxrku dh olwyh | B21: 0202&02 | C21: 102 | D21: 3 | E21: 2
A22: vuqi;ksxh lkeku ds fuLrkj.k ls vk; | B22: 0202&02 | C22: 102 | D22: 5 | E22: 2
A23: O;; | C23: Lohd`r ctV 20&21 | F23: [kpksZa dk fooj.k | M23: O;; 04@20 ls 07@20
A24: en | B24: gsM | C24: dqy ;ksx | D24: jkT; fuf/k | E24: dsUnzh; lgk;rk | F24: 2017-18 | G24: 2018-19 | H24: 2019-20 | I24: 08/19 to 03/20 | J24: 04/20 to 07/20 | K24: lEHkkfor O;; 2020&21 | L24: dqy ;ksx | M24: jkT; fuf/k | N24: dsUnzh; lgk;rk
A25: laosru | B25: 1 | C25: =SUM(D25+E25) -> 2384000 | D25: 2384000 | E25: 0 | F25: 3783379 | G25: 4658460 | H25: 4432536 | I25: 2925894 | J25: 289407 | K25: 4652816 | L25: =SUM(J25+K25) -> 4942223 | M25: 289407 | N25: 0
A26: ;k=k O;; | B26: 3 | C26: 0 | D26: 0 | E26: 0 | F26: 0 | G26: 0 | H26: 18750 | I26: 18750 | J26: 0 | K26: 0 | L26: 0 | M26: 0 | N26: 0
A27: fpfdRlk O;; | B27: 4 | C27: 0 | L27: 0 | N27: 0
A28: dk;kZy; O;; | B28: 5 | C28: 0 | L28: 0 | N28: 0
A29: fdjk;k dj jk;fYV | B29: 9 | C29: 0 | L29: 0 | N29: 0
A30: e'khujh lkt lkeku | B30: 20 | C30: 0 | L30: 0 | N30: 0
A31: iqLrdky; | B31: 31 | C31: 0 | L31: 0 | N31: 0
A32: iz;ksx'kkyk | B32: 33 | C32: 0 | L32: 0 | N32: 0
A33: ofnZ;ka | B33: 37 | C33: 0 | L33: 0 | N33: 0
A34: vU; izHkkj | B34: 28 | C34: 0 | L34: 0 | N34: 0
A35: foHkkxh;lsokvksa ij fof'k"V O;; | B35: 57 | C35: 0 | L35: 0 | N35: 0
B37: Developed by- | N37: L-1
B38: Chaturbhuj Jat | F38: प्रधानाचार्य | N38: L-2
B39: Teacher GSSS Chogai | F39: प्रधानाध्यापक | I39: G | J39: M | K39: R | L39: C | M39: S | N39: L-3
F40: व्याख्याता | I40: NG | J40: F | K40: F | L40: W | M40: M | N40: L-4
F41: व्याख्याता शारीरिक शिक्षा | L41: H | N41: L-5
F42: पुस्तकालय अध्यक्ष ग्रेड I | N42: L-6
F43: वरिष्ठ अध्यापक | N43: L-7
F44: वरिष्ठ शारीरिक शिक्षक | N44: L-8
F45: पुस्तकालय अध्यक्ष ग्रेड II | N45: L-9
F46: अध्यापक ग्रेड III | N46: L-10
F47: प्रबोधक | N47: L-11
F48: शारीरिक शिक्षक | N48: L-12
F49: पुस्तकालय अध्यक्ष ग्रेड III | N49: L-13
F50: संस्थापन अधिकारी | N50: L-14
F51: प्रशासनिक अधिकारी | N51: L-15
F52: अतिरिक्त प्रशासनिक अधिकारी | N52: L-16
F53: सहायक प्रशासनिक अधिकारी | N53: L-17
F54: वरिष्ठ सहायक | N54: L-18
F55: कनिष्ठ सहायक | N55: L-19
F56: प्रयोग शाला सहायक | N56: L-20
F57: प्रयोग शाला सेवक | N57: L-21
F58: जमादार | N58: L-22
F59: सहायक कर्मचारी | N59: L-23
F60: ए सी बी ई ओ प्रथम | N60: L-24
F61: सहायक लेखाधिकारी प्रथम
F62: सहायक लेखाधिकारी द्वितीय
F63: कनिष्ठ लेखाकार
F64: अतिरिक्त जिला शिक्षा अधिकारी
F65: मुख्य जिला शिक्षा अधिकारी
F66: संयुक्त निदेशक स्कूल शिक्षा
F67: सी बी ई ओ
F68: प्रबोधक शारीरिक शिक्षक
F69: प्रशिक्षु शिक्षक
F70: व्याख्याता कृषि
F71: कृषि अध्यापक
F72: कृषि प्रमुख
F73: विशेष शिक्षक
F74: ए सी बी ई ओ दवितीय
